Cogmind - Beta 17.1 @@@ ROGUE MODE // 2026.08.27 @ 18:46:28 Player: Blaj Result: Destroyed by G-73 Enforcer with Heavy Laser Performance ------------- Evolutions (9) 4500 Regions Visited (33) 6600 Robots Destroyed (377) 1885 Value Destroyed (16434) 16434 Prototype IDs (71) 1420 Alien Tech Used (1) 200 Bonus (10949) 10949 TOTAL SCORE: 41988 Bonus ------- High Alert Combat Kills 822 Follower Combat Kills 1124 Entered Garrisons 200 Network Hubs Disabled 400 Met Data Miner 300 Met Imprinter 300 Met Warlord at Base 500 MAIN.C Attacked Warlord 500 Warlord Defense Kills 2734 MAIN.C Attacked Proxy Base 500 Built Enhanced Grunts 300 Met R17 at Cetus 500 Hacked Protovariant 500 Met R17 at Research 2000 Met Warlord at Research 2000 Friendly Fire -1731 Cogmind --------- Core Integrity 0/1600 Matter 281/300 Energy 240/240 System Corruption 1% Temperature Cool (33) Movement Flying (440) Ox5 Location -1/Garrison Parts ------- > --- POWER (2) -------- Light Antimatter Reactor Light Antimatter Reactor > --- PROPULSION (8) --- Xenon Bombardment Thruster > --- UTILITY (9) ------ Triangulator Spectral Analyzer Advanced Melee Analysis Suite Experimental Core Analyzer Advanced Hacking Suite > --- WEAPON (6) ------- Heavy Machine Gun Heavy Machine Gun Heavy Machine Gun > --- INVENTORY (5) ---- Advanced Transmission Jammer Advanced Reaction Control System Medium Regenerative Plating Experimental EM Shield Peak State ------------ > --- POWER ------------ Mini Fusion Reactor Improved Fusion Compressor > --- PROPULSION ------- Impulse Thruster Array Impulse Thruster Array Impulse Thruster Array Improved Q-thruster > --- UTILITY ---------- Experimental Heat Sink Medium Storage Unit Spectral Analyzer Experimental Signal Interpreter Experimental Targeting Computer Experimental Core Analyzer Experimental Core Analyzer Experimental Reaction Control System Phase Redirector > --- WEAPON ----------- Advanced KE Penetrator Helical Railgun Helical Railgun Helical Railgun Helical Railgun > --- INVENTORY -------- Improved Fusion Compressor High-capacity Matter Pod Triangulator Improved Weapon Cycler Advanced Transmission Jammer Medium Regenerative Plating Advanced Focal Shield Experimental EM Shield Advanced Hacking Suite Hypervelocity Railgun [Rating: 198] Favorites ----------- Power Micro Fission Core Engine Improved Deuterium Engine Power Core Micro Fission Core Reactor Micro Antimatter Reactor Propulsion Improved Titanium Leg Treads Medium Treads Leg Improved Titanium Leg Flight Unit Impulse Thruster Array Utility Medium Storage Unit Device Advanced Cooling System Storage Medium Storage Unit Processor Spectral Analyzer Hackware System Mapper Protection Powered Armor Artifact Phase Redirector Weapon Enhanced Autogun Energy Gun Medium Laser Ballistic Gun Enhanced Autogun Ballistic Cannon Light Cannon Launcher Precision Grenade Launcher Slashing Weapon Vibroblade Special Melee Weapon Datajack Build | -11 -10 -10 -10 -9 -8 -7 -7 -7 -7 -6 -6 -6 -6 -5 -5 -5 -5 -5 -5 -5 -4 -4 -4 -4 -4 -4 -3 -3 -2 -2 -2 -1 -1 ------- Run | Yrd Mat Min Exi Min Mat Fac Low Low Zio Pro Fac Low Dat Pro Fac Was Fac Upp Upp War Pro Fac Ext Cet Arc Hub Res Tes Res Qua Frg Acc Gar Slots Evolved 18 | . . . . . 4 2 . . . . 2 . . . 2 . . . . . . 2 . . . . 2 . 2 . . 2 . Power 1 | . . . . . . . . . . . . . . . 1 . . . . . . . . . . . . . . . . . . Propulsion 6 | . . . . . 2 . . . . . 1 . . . 1 . . . . . . . . . . . 1 . . . . 1 . Utility 7 | . . . . . . 2 . . . . 1 . . . . . . . . . . 2 . . . . 1 . 1 . . . . Weapon 4 | . . . . . 2 . . . . . . . . . . . . . . . . . . . . . . . 1 . . 1 . Parts Attached 278 | 2 6 3 . 3 35 14 . 1 6 9 23 1 . 2 5 3 11 1 1 19 4 5 5 6 4 3 23 13 29 5 5 22 9 Power 30 | . . . . 1 2 1 . . . 1 4 . . . 2 . 1 . . 4 2 1 . . . 3 2 2 2 . . . 2 Engine 5 | . . . . 1 . 1 . . . 1 1 . . . . . . . . 1 . . . . . . . . . . . . . Core 15 | . . . . . 2 . . . . . 2 . . . 2 . 1 . . . 2 1 . . . 3 1 . 1 . . . . Reactor 10 | . . . . . . . . . . . 1 . . . . . . . . 3 . . . . . . 1 2 1 . . . 2 Propulsion 54 | . 2 . . . 9 4 . . . 1 7 . . . 2 . 4 . . 3 . . . . . . 4 1 5 1 2 6 3 Treads 6 | . 2 . . . 4 . . . . . . . . . . . . . . . . . . . . . . . . . . . . Leg 9 | . . . . . 4 4 . . . 1 . . . . . . . . . . . . . . . . . . . . . . . Wheel . | . . . . . . . . . . . . . . . . . . . . . . . . . . . . . . . . . . Hover . | . . . . . . . . . . . . . . . . . . . . . . . . . . . . . . . . . . Flight 39 | . . . . . 1 . . . . . 7 . . . 2 . 4 . . 3 . . . . . . 4 1 5 1 2 6 3 Utility 105 | 1 . 2 . 1 6 7 . . 3 1 6 . . 2 . 2 4 1 1 7 1 2 3 4 1 . 15 7 14 2 3 9 . Device 60 | 1 . 1 . . 1 5 . . 2 1 2 . . . . 1 1 1 . 3 1 2 . 3 1 . 11 5 9 1 2 6 . Storage 11 | . . 1 . 1 2 . . . . . 1 . . 2 . . 1 . . . . . 1 . . . 1 . 1 . . . . Processor 19 | . . . . . . 1 . . 1 . 1 . . . . 1 1 . . 2 . . 1 . . . 3 2 4 . . 2 . Hackware 4 | . . . . . . . . . . . 1 . . . . . . . . . . . . 1 . . . . . . 1 1 . Protection 10 | . . . . . 3 1 . . . . 1 . . . . . 1 . 1 2 . . 1 . . . . . . . . . . Artifact 1 | . . . . . . . . . . . . . . . . . . . . . . . . . . . . . . 1 . . . Weapon 89 | 1 4 1 . 1 18 2 . 1 3 6 6 1 . . 1 1 2 . . 5 1 2 2 2 3 . 2 3 8 2 . 7 4 Energy Gun 4 | 1 1 . . . . . . . . . . . . . . . . . . 1 . . . . . . . 1 . . . . . Energy Cannon . | . . . . . . . . . . . . . . . . . . . . . . . . . . . . . . . . . . Ballistic Gun 60 | . . . . . 12 1 . . 2 5 5 1 . . 1 1 2 . . 4 1 1 1 2 2 . 2 2 8 2 . 1 4 Ballistic Cannon 12 | . 2 1 . 1 4 . . 1 . . 1 . . . . . . . . . . 1 1 . . . . . . . . . . Launcher 5 | . . . . . 2 1 . . 1 1 . . . . . . . . . . . . . . . . . . . . . . . Special Weapon . | . . . . . . . . . . . . . . . . . . . . . . . . . . . . . . . . . . Impact Weapon . | . . . . . . . . . . . . . . . . . . . . . . . . . . . . . . . . . . Slashing Weapon 6 | . . . . . . . . . . . . . . . . . . . . . . . . . . . . . . . . 6 . Piercing Weapon . | . . . . . . . . . . . . . . . . . . . . . . . . . . . . . . . . . . Special Melee Weapon 2 | . 1 . . . . . . . . . . . . . . . . . . . . . . . 1 . . . . . . . . Unidentified Prototypes 46 | . . . . . 1 1 . . 1 . 3 . . . 1 . 1 . . 7 . 3 1 3 . 2 4 6 5 2 . 5 . Corrupted Parts 1 | . . . . . . . . . . . . . . . . . . . . 1 . . . . . . . . . . . . . System Corruption 1 | . . . . . . . . . . . . . . . . . . . . 1 . . . . . . . . . . . . . Parts Lost 46 | . . 1 2 . . 1 . . . . . 1 . 1 1 . . . . 3 . . . 1 1 3 1 2 2 2 1 18 5 Power 5 | . . . . . . . . . . . . 1 . . . . . . . 1 . . . . . 1 . . 1 . . 1 . Propulsion 18 | . . . 1 . . . . . . . . . . . 1 . . . . 2 . . . . . 1 . . 1 . . 10 2 Utility 17 | . . 1 . . . 1 . . . . . . . 1 . . . . . . . . . 1 1 1 1 1 . 2 1 5 1 Weapon 6 | . . . 1 . . . . . . . . . . . . . . . . . . . . . . . . 1 . . . 2 2 Highest Loss Streak 11 | . . 1 2 . . 1 . . . . . 1 . 1 1 . . . . 3 . . . 1 1 3 1 1 1 1 1 11 3 To Critical Strikes . | . . . . . . . . . . . . . . . . . . . . . . . . . . . . . . . . . . Average Backups 10 | 6 7 7 7 3 13 14 15 15 14 14 10 9 9 8 6 7 8 9 9 9 9 9 9 8 4 5 8 8 8 9 9 9 4 Power . | 1 . . . . . . . . . . . . . . . 1 . . . . . . . . . . . . . . 1 . . Propulsion 1 | 4 1 . . . . 3 4 4 4 4 1 1 1 1 . . . 2 2 1 . . . . . . 1 2 1 . . . . Utility 6 | . 2 3 2 2 7 7 8 8 8 7 6 6 6 5 5 5 5 6 6 7 8 7 8 8 4 4 6 6 6 7 6 7 4 Weapon 2 | 1 2 3 3 1 4 3 3 3 2 2 2 2 2 1 . 1 1 1 1 . . 1 . . . 1 . . 1 1 1 1 . Tool/Special . | . . . . . . . . . . . . . . . . . . . . . . . . . . . . . . . . . . Unused Backups 46 | 5 5 . 2 . 6 3 . . 1 1 . . . 1 . 1 . . 1 2 . 2 1 2 . . 4 . . 3 . 6 . Power 4 | 1 1 . . . 1 . . . . . . . . . . . . . . . . . . . . . . . . . . 1 . Propulsion 8 | 2 2 . . . . . . . . . . . . . . . . . . 2 . . . 1 . . 1 . . . . . . Utility 19 | 1 . . 1 . . 1 . . 1 1 . . . . . . . . 1 . . 2 1 1 . . 2 . . 3 . 4 . Weapon 15 | 1 2 . 1 . 5 2 . . . . . . . 1 . 1 . . . . . . . . . . 1 . . . . 1 . Tool/Special . | . . . . . . . . . . . . . . . . . . . . . . . . . . . . . . . . . . Average Slot Usage (%) 92 | . 99 96 85 75 97 99 100 99 92 99 89 86 71 69 67 88 90 94 94 98 94 93 93 92 93 92 84 83 88 85 85 86 35 Engine 3 | . 14 14 10 12 . 2 7 7 7 7 1 . . . . . 1 . . 2 . . . . . . . . . . . . . Core 4 | . . . . . 8 4 . . . . 4 6 . . 2 11 9 11 11 4 2 10 10 10 10 9 8 7 2 4 4 3 . Treads 6 | . 19 28 26 14 22 23 . . . . . . . . . . . . . . . . . . . . . . . . . . . Leg 8 | . 8 . . . 12 6 30 29 30 30 3 . . . . . . . . . . . . . . . . . . . . . . Flight 12 | . . . . . . . . . . . 26 26 26 26 22 23 25 29 29 33 29 26 26 26 26 25 19 19 20 17 17 24 4 Device 9 | . 14 10 14 14 3 7 7 7 3 6 6 6 6 7 11 11 11 15 17 9 10 15 14 10 14 14 12 12 15 12 12 7 4 Storage 6 | . 14 14 10 9 9 7 7 7 7 7 6 6 6 6 5 5 5 5 5 5 5 5 5 3 . . 3 4 4 4 4 3 . Processor 10 | . . . . . . 6 7 7 12 15 15 20 20 13 11 11 10 5 5 12 11 10 12 13 10 10 14 16 17 21 17 16 14 Protection 2 | . . . . . 5 6 7 7 6 . . . . . . . . 1 . . . 4 3 5 5 5 . . . . . 2 . Ballistic Gun 19 | . . . . . 24 29 29 24 22 29 18 20 11 10 6 19 23 23 23 21 23 19 15 20 18 20 18 16 19 21 20 10 6 Ballistic Cannon 4 | . 18 26 20 24 9 . . 4 . . . . . . . . . . . . . . 4 . . . . . . . . . . Peak Build Rating 198 | 7 8 8 8 7 44 51 51 52 52 57 66 61 56 56 84 87 98 99 99 119 120 129 130 130 135 136 152 165 193 198 191 191 80 Average Rating 81 | 6 7 7 6 6 40 49 50 50 46 54 56 61 48 50 56 85 90 98 98 108 117 126 128 126 133 132 143 150 172 188 182 162 59 On Entrance 82 | 6 7 8 8 2 7 43 50 51 50 51 56 61 56 56 52 84 85 98 99 96 118 114 129 126 130 134 113 150 165 187 191 178 43 Avg Prop Armor Cover (%) 5 | . . . 35 33 3 4 . . . . . . 21 5 5 . . . . 1 . 7 . . . 1 . . . . . 2 . Naked Turns . | . . . . . . . . . . . . . . . . . . . . . . . . . . . . . . . . . . Heaviest Build 66 | 12 15 20 20 19 61 56 56 58 57 64 45 30 23 23 36 37 48 48 43 50 51 55 55 52 42 44 58 53 63 60 61 66 45 Greatest Support 112 | 20 40 40 40 20 112 112 80 80 80 85 85 33 33 33 39 39 49 49 49 54 54 56 56 56 44 44 61 62 63 63 63 66 21 Greatest Overweight (x) 7 | . . . . . 1 2 . . . . . . 7 . . . 1 . . 3 . 3 . . . 1 1 . 1 . 1 1 3 Average Overweight (x) . | . . . . . . . . . . . . . 1 . . . . . . . . . . . . . . . . . . . . Largest Inventory Capacity 15 | 8 8 10 10 8 15 15 15 15 15 15 15 10 10 10 8 8 10 10 10 10 10 10 10 10 5 5 10 10 10 10 10 10 5 Average Capacity 11 | 8 8 8 8 7 14 15 15 15 15 15 10 10 10 9 8 8 8 10 10 10 10 10 10 8 5 5 9 10 10 10 10 9 5 Most Carried 15 | 6 8 8 8 5 15 15 15 15 15 15 15 10 10 10 8 8 10 10 10 10 10 10 10 10 5 5 10 10 10 10 10 10 5 Average Carried 10 | 6 7 7 7 3 13 14 15 15 14 14 10 10 10 9 7 7 8 10 10 9 9 8 9 8 4 4 9 9 9 9 9 9 4 Final Capacity 15 | 8 8 10 5 8 15 15 15 15 15 15 10 10 10 8 8 8 10 10 10 10 10 10 10 5 5 5 10 10 10 10 10 5 5 Final Carried 15 | 6 8 8 5 4 15 15 15 15 15 15 10 10 10 8 7 8 10 10 10 9 10 9 10 5 5 5 10 10 10 10 10 5 4 Class Distribution -------------------- 20% | Skirmisher 20% | Scavenger-Sprinter 16% | Mutant 8% | Scavenger-Scout 7% | Tank 7% | Sprinter 5% | Gunner 5% | Scavenger-Gunner 5% | Scout Dominant Class ---------------- Mutant | -10/Materials Mutant | -10/Mines Mutant | -10/Exiles Mutant | -9/Mines Tank | -8/Materials Skirmisher | -7/Factory Skirmisher | -7/Lower Caves Skirmisher | -7/Lower Caves Gunner | -7/Zion Skirmisher | -6/Proximity Caves Sprinter | -6/Factory Scout | -6/Lower Caves Mutant | -6/Data Miner Scout | -5/Proximity Caves Scout | -5/Factory Scout | -5/Waste Sprinter | -5/Factory Sprinter | -5/Upper Caves Sprinter | -5/Upper Caves Scavenger-Sprinter | -5/Warlord Scavenger-Sprinter | -4/Proximity Caves Scavenger-Sprinter | -4/Factory Scavenger-Sprinter | -4/Extension Scavenger-Sprinter | -4/Cetus Scavenger-Gunner | -4/Archives Scavenger-Sprinter | -4/Hub_04(d) Scavenger-Scout | -3/Research Hacker-Sprinter | -3/Testing Scavenger-Sprinter | -2/Research Scavenger-Gunner | -2/Quarantine Scavenger-Gunner | -2/Protoforge Scavenger-Sprinter | -1/Access Scavenger-Gunner | -1/Garrison Resources | -11 -10 -10 -10 -9 -8 -7 -7 -7 -7 -6 -6 -6 -6 -5 -5 -5 -5 -5 -5 -5 -4 -4 -4 -4 -4 -4 -3 -3 -2 -2 -2 -1 -1 ----------- Run | Yrd Mat Min Exi Min Mat Fac Low Low Zio Pro Fac Low Dat Pro Fac Was Fac Upp Upp War Pro Fac Ext Cet Arc Hub Res Tes Res Qua Frg Acc Gar Matter Collected 22284 | 226 353 150 3 73 1797 933 107 551 175 1519 725 320 . 133 . 502 509 218 24 1479 298 935 1508 981 475 506 1566 1341 2065 801 775 899 337 Remotely 1332 | . . . . . 593 210 . . . 529 . . . . . . . . . . . . . . . . . . . . . . . Salvage Created 21452 | 13 387 286 . 74 1292 984 44 526 . 1497 804 232 . 24 35 895 971 193 . 1564 156 945 1469 568 230 647 1710 823 2099 1078 575 1064 267 Parts 928 | 3 25 16 . 3 80 50 4 7 . 51 34 . . 5 2 14 44 8 . 72 10 42 52 25 14 24 71 37 94 43 32 58 8 Haulers Intercepted 36 | . . . . . 5 2 . . . . 3 . . . . . 2 . . . . 5 1 . . 1 7 1 5 2 . 2 . Recyclers Shooed 8 | . . . . . 1 3 . . . . 1 . . . 1 . 2 . . . . . . . . . . . . . . . . Parts Field Recycled . | . . . . . . . . . . . . . . . . . . . . . . . . . . . . . . . . . . Retrieved Matter . | . . . . . . . . . . . . . . . . . . . . . . . . . . . . . . . . . . Parts Self-Destructed 102 | . . . . . . . 4 6 2 73 . . . 3 . . . 7 . . 7 . . . . . . . . . . . . Prevented 64 | . . . . . . . . . . 59 . . . . . . . 5 . . . . . . . . . . . . . . . Parts Restored . | . . . . . . . . . . . . . . . . . . . . . . . . . . . . . . . . . . Kills | -11 -10 -10 -10 -9 -8 -7 -7 -7 -7 -6 -6 -6 -6 -5 -5 -5 -5 -5 -5 -5 -4 -4 -4 -4 -4 -4 -3 -3 -2 -2 -2 -1 -1 ------- Run | Yrd Mat Min Exi Min Mat Fac Low Low Zio Pro Fac Low Dat Pro Fac Was Fac Upp Upp War Pro Fac Ext Cet Arc Hub Res Tes Res Qua Frg Acc Gar Combat Hostiles Destroyed 258 | . 10 7 . . 31 11 1 11 . 30 7 . . 5 4 3 2 3 . 21 2 3 11 7 2 6 13 11 20 10 8 14 5 Melee 7 | . . . . . . . . . . . . . . . . . . . . . . . . . . . . . . . . 5 2 Guns 200 | . 5 . . . 24 11 1 6 . 22 5 . . . . 2 2 3 . 21 2 2 5 7 2 6 13 11 20 10 8 9 3 Cannons 23 | . 5 7 . . 3 . . 1 . . . . . . . . . . . . . 1 6 . . . . . . . . . . AOE 28 | . . . . . 4 . . 4 . 8 2 . . 5 4 1 . . . . . . . . . . . . . . . . . Classes Destroyed 26 | 1 5 1 . . 5 1 . 1 . 2 . . . 1 . 2 . . . 3 . . . . . . 1 1 1 . . 1 . Worker 15 | . 1 . . 1 3 1 . . . . 1 . . . . . 2 . . . . 3 1 . . 1 . . . . . 1 . Builder 10 | . . 1 . . 1 . . . . . . . . . . . 4 . . . . 1 . . . . 1 . 1 . . 1 . Tunneler 1 | 1 . . . . . . . . . . . . . . . . . . . . . . . . . . . . . . . . . Hauler 36 | . . . . . 5 2 . . . . 3 . . . . . 2 . . . . 5 1 . . 1 7 1 5 2 . 2 . Recycler 24 | . 2 1 . 1 2 6 . . . . 1 . . . . . 4 . . . . 1 4 . . . . . 1 1 . . . Mechanic 3 | . 1 . . . . . . . . 1 . . . . . . . . . . . . . . . . . . . . 1 . . Operator 7 | . . . . . 1 . . . . . 1 . . . . . . . . . . 2 . . 2 . . 1 . . . . . Drone 2 | . . . . . . . . . . . . . . 1 . . . . . . . . . . . . . . . . . 1 . Watcher 18 | . . . . . 2 2 . . . . 2 . . . . . 1 . . . . 1 2 1 . . . 1 2 . 1 3 . Swarmer 68 | . 8 . . . 11 7 . 1 . 7 2 . . 4 4 . . . . 1 . . 1 . . . . 4 7 . 4 4 3 Cutter 4 | . . . . . . . . . . . . . . . . . . . . . . . . . . . . . . . . 4 . Saboteur 1 | . . . . . . . . . . . . . . . . . . . . 1 . . . . . . . . . . . . . Grunt 88 | . 2 7 . . 11 2 . 7 . 11 2 . . . . . 2 3 . 8 . 1 4 . . 4 10 2 4 5 . 1 2 Brawler 6 | . . . . . . . . . . 4 . . . . . . . . . 1 . . . . . . . . . . . 1 . Duelist 3 | . . . . . . . . 2 . 1 . . . . . . . . . . . . . . . . . . . . . . . Sentry 25 | . . . . . 7 . . 1 . 1 . . . . . . . . . . . . 5 . 2 2 1 . 3 . 2 1 . Demolisher 1 | . . . . . . . . . . . . . . . . . . . . . . . . . . . . . 1 . . . . Specialist 4 | . . . . . . . . . . 1 . . . . . . . . . 2 . . . . . . . 1 . . . . . Hunter 9 | . . . . . 2 . . . . 2 . . . . . . . . . 1 . . . . . . . . . 2 2 . . Programmer 26 | . . . . . . 2 1 . . 3 3 . . . . . . . . 3 1 2 . . . . . 3 3 3 . 2 . Behemoth 5 | . . . . . . . . . . . . . . . . . . . . 3 1 . 1 . . . . . . . . . . Compactor 3 | . . . . . . . . . . . . . . . . 3 . . . . . . . . . . . . . . . . . Cetus Guard 7 | . . . . . . . . . . . . . . . . . . . . . . . . 7 . . . . . . . . . Enhanced Grunt 1 | . . . . . . . . . . . . . . . . . . . . . . . . . . 1 . . . . . . . Striker 1 | . . . . . . . . . . . . . . . . . . . . 1 . . . . . . . . . . . . . Executioner 2 | . . . . . . . . . . . . . . . . . . . . . . . . . . . . . 2 . . . . Alpha 7 1 | . . . . . . . . . . . . . . . . . . . . . . . . . . . . 1 . . . . . Surgeon 1 | . . . . . . . . . . 1 . . . . . . . . . . . . . . . . . . . . . . . Thug 2 | . . . . . . . . . . . . . . . . . . . . 2 . . . . . . . . . . . . . Martyr 2 | . . . . . . . . . . . . . . . . 2 . . . . . . . . . . . . . . . . . Sapper 1 | . . . . . . . . . . . . . . . . . . . . 1 . . . . . . . . . . . . . Revision 2 | . . . . . . . . . . . . . . . . . . . . . . . . . . . 2 . . . . . . Best Kill Streak 10 | 1 3 3 . 2 7 5 1 6 . 6 2 . . 5 4 2 10 2 . 4 1 7 4 4 2 3 7 7 5 4 4 10 3 Combat Bots Only 7 | . 3 3 . . 7 5 1 6 . 6 2 . . 5 4 2 2 2 . 4 1 2 3 4 2 2 3 7 5 4 4 4 3 Max Kills in Single Turn 3 | 1 1 2 . 1 3 2 1 1 . 3 2 . . 3 2 1 3 1 . 1 1 2 1 1 1 2 3 2 2 1 3 2 1 Gunslinging 1 | . . . . . . . . . . . . . . . . . . . . . . . . . . . . 1 1 . 1 1 . Exploded 3 | . . . . . 3 . . 1 . 2 2 . . 3 2 1 . . . . . . . . . . . . . . . . . Melee 1 | . . . . . . . . . . . . . . . . . . . . . . . . . . . . . . . . 1 1 Uniques/NPCs Destroyed . | . . . . . . . . . . . . . . . . . . . . . . . . . . . . . . . . . . Combat | -11 -10 -10 -10 -9 -8 -7 -7 -7 -7 -6 -6 -6 -6 -5 -5 -5 -5 -5 -5 -5 -4 -4 -4 -4 -4 -4 -3 -3 -2 -2 -2 -1 -1 -------- Run | Yrd Mat Min Exi Min Mat Fac Low Low Zio Pro Fac Low Dat Pro Fac Was Fac Upp Upp War Pro Fac Ext Cet Arc Hub Res Tes Res Qua Frg Acc Gar Hostile Shots Fired 1520 | . 42 12 13 . 101 58 10 87 . 85 59 15 . 40 4 . 19 10 . 58 19 65 15 26 8 45 59 135 96 42 89 230 78 Missed 723 | . 13 3 3 . 30 18 3 30 . 36 40 9 . 24 1 . 6 7 . 28 9 47 9 11 4 32 34 60 55 27 64 99 21 Hits 797 | . 29 9 10 . 71 40 7 57 . 49 19 6 . 16 3 . 13 3 . 30 10 18 6 15 4 13 25 75 41 15 25 131 57 Melee 20 | . . . . . . . . 6 . 1 . . . . . . . . . . . . . . . . . . . . . 13 . Projectile 777 | . 29 9 10 . 71 40 7 51 . 48 19 6 . 16 3 . 13 3 . 30 10 18 6 15 4 13 25 75 41 15 25 118 57 AOE 2 | . . . . . . . . . . . . . . . . . . . . 1 . . . . . . . . . . . 1 . Critical Strikes 36 | . . 1 3 . . 2 . 4 . . . . . . . . . . . . . . . 2 . . 1 4 1 4 2 11 1 Part Disruptions 2 | . . . . . . . . . . . . . . . . . . . . 1 . . . . . . . 1 . . . . . Damage Taken 15410 | . 237 136 234 . 889 724 112 879 . 1041 259 90 . 300 39 . 236 58 . 948 130 341 130 426 196 283 377 1511 833 301 525 2911 1264 Core 3330 | . 46 61 65 . 50 78 34 69 . 105 33 17 . 80 . . . 21 . 136 41 19 32 136 54 54 70 215 214 50 40 764 846 Absorbed by Shields 128 | . . . . . . . . . . 2 . . . . . . . . . . . . 10 . . . . . . . . 75 41 Redirected to Shielding 88 | . . . . . . . . . . . . . . . . . . . . . . 37 . . 19 18 14 . . . . . . Ignored by Resistances 114 | . . . . . . . . . . . . . . . . . . . . . . . . . . . . . 33 68 13 . . Regen/Repaired (Parts) 2120 | . . . . . . . . . 913 . . . . . . 22 . . . 39 . 171 67 46 . . 380 232 . . 146 104 . Core Remaining (%) 75 | 100 . . . 31 90 . . . . 59 . . . 84 . . . . . . 80 . . . . 74 . 78 . . 79 . . Volleys Fired 851 | 3 25 15 1 4 67 43 4 23 . 63 49 6 . 4 3 28 34 11 4 80 12 29 37 26 12 22 53 63 59 23 17 19 12 Largest 6 | 2 2 2 1 2 4 4 4 4 . 4 3 3 . 1 1 4 4 4 2 4 4 4 4 4 4 4 4 4 5 5 5 6 3 Hottest 224 | 40 100 60 30 60 160 100 100 115 . 132 88 84 . 36 36 122 121 118 60 125 135 154 154 133 140 140 140 135 190 192 189 224 90 Shots Fired 2822 | 6 49 30 1 8 237 168 17 70 . 199 97 18 . 4 3 92 98 42 6 275 33 83 97 104 47 75 207 190 266 105 75 87 33 Gun 2605 | 6 24 . . . 182 168 17 49 . 184 83 18 . . . 90 98 42 6 275 33 76 65 104 47 75 207 190 266 105 75 87 33 Cannon 176 | . 25 30 1 8 53 . . 14 . . 6 . . . . . . . . . . 7 32 . . . . . . . . . . Launcher 41 | . . . . . 2 . . 7 . 15 8 . . 4 3 2 . . . . . . . . . . . . . . . . . Special . | . . . . . . . . . . . . . . . . . . . . . . . . . . . . . . . . . . Kinetic 2751 | 6 25 30 1 8 235 168 17 63 . 184 89 18 . . . 90 98 42 6 275 33 83 97 104 47 75 207 190 260 105 75 87 33 Thermal 24 | . 24 . . . . . . . . . . . . . . . . . . . . . . . . . . . . . . . . Explosive 41 | . . . . . 2 . . 7 . 15 8 . . 4 3 2 . . . . . . . . . . . . . . . . . Electromagnetic 6 | . . . . . . . . . . . . . . . . . . . . . . . . . . . . . 6 . . . . Robot Hit Streak 52 | 1 4 9 3 4 20 10 8 11 . 13 19 11 . 12 . 24 14 5 . 6 6 11 18 8 12 10 12 10 52 14 9 7 6 Robot Miss Streak 8 | 1 6 1 . . 5 7 1 3 . 3 8 1 . 1 . 2 3 4 . 5 3 6 3 3 3 2 5 4 2 2 3 7 3 Penetration Max 3 | . . . . . . . . . . 3 1 . . . . 1 1 1 . 1 . 2 1 1 1 1 2 1 1 1 2 1 . Secondary Targets 36 | . 1 . . . 3 1 . . . 5 . . . . . . . . . 5 . . . 2 . . 2 3 4 5 2 3 . Max Gunslinging Chain 2 | . 1 . . . 1 1 . . . 1 . . . . . . . . . 1 . . . 1 . . 1 1 1 1 2 1 . Shots Hit Robots 1568 | 3 24 22 1 1 127 87 10 36 . 126 61 11 . 1 . 75 40 20 . 137 16 39 57 60 33 48 100 88 178 55 35 48 29 Core Hits 885 | 2 15 12 1 1 120 35 3 27 . 90 51 5 . 6 7 18 23 7 . 62 8 27 33 26 18 23 46 34 91 31 19 30 14 Critical Kills 64 | . . . . . . . . . . 15 . . . . . 2 . . . 5 . 2 11 1 1 . 4 7 4 2 6 3 1 Critical Parts Destroyed 82 | . . . . . 1 . . . . 24 3 . . . . . 1 1 . 5 . 3 8 3 . 2 3 12 8 3 3 1 1 Critical Strikes 163 | . 1 1 . 1 1 . . . . 39 3 . . . . 5 1 1 . 10 . 5 22 6 2 2 7 20 13 5 9 4 5 Burn 1 | . 1 . . . . . . . . . . . . . . . . . . . . . . . . . . . . . . . . Destroy 157 | . . . . . 1 . . . . 39 3 . . . . 5 1 1 . 10 . 5 22 6 2 2 7 20 13 5 9 4 2 Blast 2 | . . 1 . 1 . . . . . . . . . . . . . . . . . . . . . . . . . . . . . Sever 3 | . . . . . . . . . . . . . . . . . . . . . . . . . . . . . . . . . 3 Melee Attacks 36 | . 2 . . . . . . . . . . . . . . . . . . . . . . . 3 . . . . . . 22 9 Impact . | . . . . . . . . . . . . . . . . . . . . . . . . . . . . . . . . . . Slashing 31 | . . . . . . . . . . . . . . . . . . . . . . . . . . . . . . . . 22 9 Piercing . | . . . . . . . . . . . . . . . . . . . . . . . . . . . . . . . . . . Sneak Attacks 7 | . 2 . . . . . . . . . . . . . . . . . . . . . . . 3 . . . . . . 2 . Combat Hostiles . | . . . . . . . . . . . . . . . . . . . . . . . . . . . . . . . . . . Follow-up Attacks 6 | . . . . . . . . . . . . . . . . . . . . . . . . . . . . . . . . 6 . Damage Inflicted 43678 | 23 393 423 17 53 2709 1645 216 1359 . 2696 1976 223 . 466 480 1914 1234 545 . 4418 446 1425 1693 1791 920 1365 2252 2635 4937 1768 793 1996 867 Guns 36532 | 23 150 . . . 1981 1579 211 515 . 1432 1431 223 . . . 1748 1234 545 . 4418 446 1185 1157 1791 920 1365 2252 2635 4937 1768 793 1252 541 Cannons 2122 | . 243 419 17 53 485 . . 206 . . . . . . . . . . . . . 163 536 . . . . . . . . . . Explosions 3870 | . . . . . 234 . . 638 . 1264 545 . . 466 480 166 . . . . . 77 . . . . . . . . . . . Melee 1056 | . . . . . . . . . . . . . . . . . . . . . . . . . . . . . . . . 744 312 Ramming 98 | . . 4 . . 9 66 5 . . . . . . . . . . . . . . . . . . . . . . . . . 14 Kinetic 38492 | 23 243 419 17 53 2466 1579 211 721 . 1432 1431 223 . . . 1748 1234 545 . 4418 446 1348 1693 1791 920 1365 2252 2635 4925 1768 793 1252 541 Thermal 227 | . 150 . . . . . . . . . . . . . . . . . . . . 77 . . . . . . . . . . . Explosive 3793 | . . . . . 234 . . 638 . 1264 545 . . 466 480 166 . . . . . . . . . . . . . . . . . Electromagnetic 12 | . . . . . . . . . . . . . . . . . . . . . . . . . . . . . 12 . . . . Impact . | . . . . . . . . . . . . . . . . . . . . . . . . . . . . . . . . . . Slashing 1056 | . . . . . . . . . . . . . . . . . . . . . . . . . . . . . . . . 744 312 Piercing . | . . . . . . . . . . . . . . . . . . . . . . . . . . . . . . . . . . Highest Corruption 11 | . . . . . . 7 9 9 9 1 3 3 3 3 . . . . . 11 11 1 1 1 1 . 1 3 . . . 4 1 Average Corruption 3 | . . . . . . 5 7 9 5 1 2 3 3 3 . . . . . 3 11 1 1 1 1 . 1 2 . . . 3 1 Corruption Purged 11 | . . . . . . 1 . . . . . . . . . . . . . . . . . . 1 . . 6 . . . 3 . Corruption Blocked . | . . . . . . . . . . . . . . . . . . . . . . . . . . . . . . . . . . Effects 160 | . . . . . . 30 17 27 2 10 4 7 . 3 . . . . . 17 19 . 7 1 1 . 1 8 . . . 5 1 Message Errors 32 | . . . . . . 4 3 7 . 3 . . . 1 . . . . . 4 4 . 1 . . . . 3 . . . 1 1 Matter Fused 33 | . . . . . . 5 6 8 1 1 1 2 . 1 . . . . . 4 3 . . . . . . 1 . . . . . Heat Flow Errors 18 | . . . . . . 4 . 3 . . . 2 . . . . . . . 2 2 . 1 1 . . . . . . . 3 . Energy Discharges 25 | . . . . . . 8 1 3 1 2 . 2 . . . . . . . . 3 . 2 . . . . 2 . . . 1 . Parts Rejected 2 | . . . . . . . . . . . . . . . . . . . . . . . . . 1 . . 1 . . . . . Parts Fused 2 | . . . . . . . 1 . . 1 . . . . . . . . . . . . . . . . . . . . . . . Data Loss (minor) 17 | . . . . . . 3 2 4 . . . 1 . 1 . . . . . 1 2 . 2 . . . . 1 . . . . . Data Loss (major) 7 | . . . . . . 1 . 1 . . 1 . . . . . . . . 3 1 . . . . . . . . . . . . Misfires 10 | . . . . . . 3 2 . . 3 . . . . . . . . . 1 1 . . . . . . . . . . . . Alerts 6 | . . . . . . 1 1 1 . . . . . . . . . . . 1 1 . 1 . . . . . . . . . . Misdirections 1 | . . . . . . . . . . . . . . . . . . . . . 1 . . . . . . . . . . . . Weapon Failures 7 | . . . . . . 1 1 . . . 2 . . . . . . . . 1 1 . . . . . 1 . . . . . . Overload Shots . | . . . . . . . . . . . . . . . . . . . . . . . . . . . . . . . . . . Overflow Damage 203 | . . . . . 40 . . 20 . 51 . . . 5 . . . . . . . 21 . . . . . . . . . 66 . Projectiles 16 | . . . . . 16 . . . . . . . . . . . . . . . . . . . . . . . . . . . . Explosions 121 | . . . . . 24 . . 20 . 51 . . . 5 . . . . . . . 21 . . . . . . . . . . . Melee 66 | . . . . . . . . . . . . . . . . . . . . . . . . . . . . . . . . 66 . Knockbacks 18 | . 2 3 1 . 6 . . 4 . . . . . . . . . . . . . . 2 . . . . . . . . . . Impact . | . . . . . . . . . . . . . . . . . . . . . . . . . . . . . . . . . . Kinetic 18 | . 2 3 1 . 6 . . 4 . . . . . . . . . . . . . . 2 . . . . . . . . . . Secondary . | . . . . . . . . . . . . . . . . . . . . . . . . . . . . . . . . . . Self-Inflicted Damage 160 | . . . . . . . . 29 . 84 40 . . . . . . . . . . . . . . . . . . . . . 7 Shots 5 | . . . . . . . . 2 . 2 1 . . . . . . . . . . . . . . . . . . . . . . Rammed 7 | . 1 1 . . . 3 . . . . . . . . . . . . . . . . . . . . . . . . . . 2 Targets Rammed 15 | . 1 1 . . 1 9 1 . . . . . . . . . . . . . . . . . . . . . . . . . 2 Kicked 8 | . . . . . 1 6 1 . . . . . . . . . . . . . . . . . . . . . . . . . . Crushed . | . . . . . . . . . . . . . . . . . . . . . . . . . . . . . . . . . . Highest Temperature 422 | . 117 23 . 12 304 422 176 249 . 173 99 197 . 1 . 128 2 94 . 311 203 121 246 113 5 13 28 199 292 . . 359 39 Average Temperature 68 | . 42 11 . 6 71 119 84 84 . 44 38 78 . 1 . 69 2 66 . 56 62 41 52 40 3 7 13 55 66 . . 105 17 Received Heat Transfer 1893 | . . 93 . . 261 54 18 333 . 228 48 12 . 57 . . 63 18 . 60 27 18 30 . 27 18 45 87 9 36 36 225 90 Effects 15 | . . . . . 3 3 . 3 . . . . . . . . . . . . . . . . . . . . . . . 6 . Shutdowns 1 | . . . . . . . . . . . . . . . . . . . . . . . . . . . . . . . . 1 . Energy Bleed 2 | . . . . . . 1 . . . . . . . . . . . . . . . . . . . . . . . . . 1 . Interference 11 | . . . . . 3 2 . 3 . . . . . . . . . . . . . . . . . . . . . . . 3 . Matter Decay 1 | . . . . . . . . . . . . . . . . . . . . . . . . . . . . . . . . 1 . Siege Activations . | . . . . . . . . . . . . . . . . . . . . . . . . . . . . . . . . . . Martial Activations . | . . . . . . . . . . . . . . . . . . . . . . . . . . . . . . . . . . Shielding Activations . | . . . . . . . . . . . . . . . . . . . . . . . . . . . . . . . . . . Robots Disrupted 1 | . . . . . . . . . . . . . . . . . . . . . . . . . . . . . 1 . . . . Combat Hostiles 1 | . . . . . . . . . . . . . . . . . . . . . . . . . . . . . 1 . . . . Robots Corrupted . | . . . . . . . . . . . . . . . . . . . . . . . . . . . . . . . . . . Combat Hostiles . | . . . . . . . . . . . . . . . . . . . . . . . . . . . . . . . . . . Parts Fried 2 | . . . . . . . . . . 1 . . . . . . . . . . . . . 1 . . . . . . . . . Impact Corruptions . | . . . . . . . . . . . . . . . . . . . . . . . . . . . . . . . . . . Robots Melted . | . . . . . . . . . . . . . . . . . . . . . . . . . . . . . . . . . . Combat Hostiles . | . . . . . . . . . . . . . . . . . . . . . . . . . . . . . . . . . . Parts Melted 3 | . 2 . . . . . . . . . . . . . . . . . . . . . . . . . . 1 . . . . . Heat Transferred 618 | . 518 . . . . . . . . . . . . . . . . . . . . 100 . . . . . . . . . . . Parts Sabotaged 2 | . . . . . . . . . . 2 . . . . . . . . . . . . . . . . . . . . . . . Parts Stolen . | . . . . . . . . . . . . . . . . . . . . . . . . . . . . . . . . . . Parts Stripped . | . . . . . . . . . . . . . . . . . . . . . . . . . . . . . . . . . . Power Chain Reactions . | . . . . . . . . . . . . . . . . . . . . . . . . . . . . . . . . . . Alert | -11 -10 -10 -10 -9 -8 -7 -7 -7 -7 -6 -6 -6 -6 -5 -5 -5 -5 -5 -5 -5 -4 -4 -4 -4 -4 -4 -3 -3 -2 -2 -2 -1 -1 ------- Run | Yrd Mat Min Exi Min Mat Fac Low Low Zio Pro Fac Low Dat Pro Fac Was Fac Upp Upp War Pro Fac Ext Cet Arc Hub Res Tes Res Qua Frg Acc Gar Maximum Alert Level 4 | . . . . . 2 1 . . . . 2 . . . 1 . . . . . . 2 4 3 2 1 1 1 2 2 1 2 2 Low Security (%) 62 | 100 100 100 . 100 40 88 . . . . 41 . . . 59 100 100 . . . . 33 1 . 17 91 95 60 69 . 98 15 . Level 1 21 | . . . . . 15 11 . . . . 33 . . . 40 . . . . . . 39 58 . 75 8 4 39 17 81 1 46 2 Level 2 15 | . . . . . 44 . . . . . 24 . . . . . . . . . . 27 27 54 7 . . . 12 18 . 37 97 Level 3 1 | . . . . . . . . . . . . . . . . . . . . . . . 9 45 . . . . . . . . . Level 4 . | . . . . . . . . . . . . . . . . . . . . . . . 3 . . . . . . . . . . Level 5 . | . . . . . . . . . . . . . . . . . . . . . . . . . . . . . . . . . . High Security . | . . . . . . . . . . . . . . . . . . . . . . . . . . . . . . . . . . Max Security . | . . . . . . . . . . . . . . . . . . . . . . . . . . . . . . . . . . Peak Influence 1151 | 5 143 68 . 10 628 270 . . . . 511 . . . 248 101 177 . . . . 582 1151 733 414 215 221 241 448 415 222 558 596 Initial 640 | . . 5 . . . 270 . . . . 511 . . . 157 83 . . . . . 37 280 640 283 53 101 42 63 248 222 107 398 Average 198 | . 29 13 . . 327 117 . . . . 256 . . . 187 56 84 . . . . 267 448 694 283 114 119 141 181 323 91 339 504 Influence Increases 12662 | 5 369 201 . 10 1072 335 30 245 . 812 872 10 . 320 121 58 449 175 . 435 120 743 1443 329 201 521 495 575 845 423 443 777 228 Destroy 0b10 Robot/C 5740 | . 200 140 . . 620 220 20 220 . 640 140 . . 80 80 . 200 60 . 420 40 60 620 160 80 160 240 220 400 200 160 260 100 Destroy 0b10 Robot/NC 620 | 5 20 10 . 10 70 55 . 5 . 5 40 10 . 5 . . 75 . . . . 65 50 10 10 10 40 15 45 15 10 40 . Destroy Leader 872 | . 30 30 . . 164 48 10 20 . 40 38 . . 10 10 . 26 10 . . 20 12 74 . . 42 34 24 94 34 42 60 . Allied During Kill 652 | . . 6 . . . . . . . 7 . . . . . . 10 . . . . . 435 93 49 52 . . . . . . . Successful Hack 422 | . 13 . . . 7 9 . . . . 26 . . . 5 . 29 . . . . 42 . . . 3 52 107 18 36 33 42 . Select Force Hacks 160 | . 60 . . . . . . . . . . . . . . . . . . . . . . . . 100 . . . . . . . Disable Machine 810 | . 15 15 . . 120 . . . . . 135 . . . . . 45 . . . . 75 60 . 30 90 15 90 15 45 45 15 . Destroy Structure 776 | . 1 . . . 76 3 . . . . 73 . . . 26 58 64 . . . . 144 84 66 32 34 24 14 18 18 33 . 8 Advance Influence 300 | . . . . . . . . . . . 300 . . . . . . . . . . . . . . . . . . . . . . Partial Spotted 315 | . . . . . . . . . . . 45 . . . . . . . . . . 15 15 . . 30 60 30 45 . 45 30 . Lose Combat Pursuer 1995 | . 30 . . . 15 . . . . 120 75 . . 225 . . . 105 . 15 60 330 105 . . . 30 75 210 75 75 330 120 Influence Decreases 12086 | 5 354 197 19 10 476 858 103 245 . 476 785 297 136 70 133 295 380 146 79 329 186 229 872 765 758 479 613 538 516 468 661 458 150 Entered New Map 3306 | . . 10 19 . . 326 28 . . . 125 157 136 . 93 155 1 26 19 20 126 23 294 505 426 99 93 34 50 194 175 72 100 Time Decay 6760 | 5 354 177 . 10 476 522 75 245 . 430 410 130 . 70 30 120 198 120 60 279 60 206 368 130 302 112 510 334 446 254 121 206 . Search Patrol Dispatched 100 | . . . . . . . . . . . 100 . . . . . . . . . . . . . . . . . . . . . . Lost Part 430 | . . 10 . . . 10 . . . . . 10 . . 10 . . . . 30 . . . 10 10 30 10 20 20 20 10 180 50 Lost Ally 477 | . . . . . . . . . . 46 . . . . . 20 181 . . . . . 60 120 20 30 . . . . . . . Purge Threat 1013 | . . . . . . . . . . . 150 . . . . . . . . . . . 150 . . 208 . 150 . . 355 . . Squads Dispatched 77 | . 4 . . . 3 7 . . . 1 7 . . 1 . . 6 . . . . 8 2 . . 6 5 10 1 6 3 7 . Investigation 12 | . 3 . . . . 1 . . . . 1 . . . . . 1 . . . . 1 . . . 3 1 . . . . 1 . Extermination 16 | . . . . . . 3 . . . . 2 . . . . . 1 . . . . 2 . . . . . 3 . 3 . 2 . Reinforcement 44 | . 1 . . . 3 3 . . . . 4 . . . . . 3 . . . . 4 2 . . 3 4 6 1 3 3 4 . Assault 3 | . . . . . . . . . . 1 . . . 1 . . . . . . . . . . . . . 1 . . . . . Garrison 2 | . . . . . . . . . . . . . . . . . 1 . . . . 1 . . . . . . . . . . . Intercept . | . . . . . . . . . . . . . . . . . . . . . . . . . . . . . . . . . . Searches Triggered 1 | . . . . . . . . . . . 1 . . . . . . . . . . . . . . . . . . . . . . Data Miner Redirects 1 | . . . . . . . . . . . . . . . . . . . . . . . . . . . . . . . . 1 . Construction Impeded 5 | . . . . . . . . . . . . . . . . . 2 . . . . 1 1 . . . 1 . . . . . . Haulers Reinforced 11 | . . . . . . . . . . . 3 . . . . . 1 . . . . 2 . . . 1 1 1 . 1 . 1 . Active Scanning Responses . | . . . . . . . . . . . . . . . . . . . . . . . . . . . . . . . . . . Cargo Convoy Interrupts . | . . . . . . . . . . . . . . . . . . . . . . . . . . . . . . . . . . Stealth | -11 -10 -10 -10 -9 -8 -7 -7 -7 -7 -6 -6 -6 -6 -5 -5 -5 -5 -5 -5 -5 -4 -4 -4 -4 -4 -4 -3 -3 -2 -2 -2 -1 -1 --------- Run | Yrd Mat Min Exi Min Mat Fac Low Low Zio Pro Fac Low Dat Pro Fac Was Fac Upp Upp War Pro Fac Ext Cet Arc Hub Res Tes Res Qua Frg Acc Gar Distress Signals 40 | . 1 . . . 2 1 . . . . 2 . . . . . . . . 1 . 1 2 2 . 1 6 2 11 1 2 5 . Communications Jammed 44 | . . . . . . . . . . . 1 . . . . . 1 . . . . 16 2 . . 14 . 6 2 . . 2 . Distress Signals 20 | . . . . . . . . . . . 1 . . . . . . . . . . . 2 . . 14 . 1 2 . . . . Times Spotted 741 | . 16 7 6 . 43 24 5 10 . 72 19 3 . 16 4 7 8 9 . 112 10 31 35 12 7 19 19 26 69 22 42 71 17 Peak Tracking Total 25 | . 3 3 9 . 8 4 4 6 . 13 4 3 . 14 4 2 4 4 . 18 4 11 5 5 1 9 5 8 11 6 25 19 9 Tactical Retreats 58 | . 2 . . . 1 . . . . 5 3 . . 5 . 1 . 3 . 1 1 8 3 . . . 2 4 7 2 1 8 1 ECM-based Alert Blocks 11 | . . . . . . . . . . . . . . . . . . . . . . . . . . . . . . . . 11 . Traps | -11 -10 -10 -10 -9 -8 -7 -7 -7 -7 -6 -6 -6 -6 -5 -5 -5 -5 -5 -5 -5 -4 -4 -4 -4 -4 -4 -3 -3 -2 -2 -2 -1 -1 ------- Run | Yrd Mat Min Exi Min Mat Fac Low Low Zio Pro Fac Low Dat Pro Fac Was Fac Upp Upp War Pro Fac Ext Cet Arc Hub Res Tes Res Qua Frg Acc Gar Traps Triggered 17 | . 1 . . . 2 3 . . . . 3 . . . 1 . . . . 1 . 1 1 . . . . 1 . 1 . 1 1 Indirectly . | . . . . . . . . . . . . . . . . . . . . . . . . . . . . . . . . . . Trap Hack Attempts 42 | . 42 . . . . . . . . . . . . . . . . . . . . . . . . . . . . . . . . Triggered 1 | . 1 . . . . . . . . . . . . . . . . . . . . . . . . . . . . . . . . Disarmed . | . . . . . . . . . . . . . . . . . . . . . . . . . . . . . . . . . . Reprogrammed 3 | . 3 . . . . . . . . . . . . . . . . . . . . . . . . . . . . . . . . Reused . | . . . . . . . . . . . . . . . . . . . . . . . . . . . . . . . . . . Traps Extracted . | . . . . . . . . . . . . . . . . . . . . . . . . . . . . . . . . . . Installed . | . . . . . . . . . . . . . . . . . . . . . . . . . . . . . . . . . . Triggered . | . . . . . . . . . . . . . . . . . . . . . . . . . . . . . . . . . . Machines | -11 -10 -10 -10 -9 -8 -7 -7 -7 -7 -6 -6 -6 -6 -5 -5 -5 -5 -5 -5 -5 -4 -4 -4 -4 -4 -4 -3 -3 -2 -2 -2 -1 -1 ---------- Run | Yrd Mat Min Exi Min Mat Fac Low Low Zio Pro Fac Low Dat Pro Fac Was Fac Upp Upp War Pro Fac Ext Cet Arc Hub Res Tes Res Qua Frg Acc Gar Machines Disabled 60 | . 1 1 . . 8 . . . . . 9 . . . . . 3 . 1 1 . 5 5 . 2 6 1 9 1 3 3 1 . Max in Single Turn 5 | . 1 . . . 1 . . . . . 2 . . . . . 1 . 1 1 . 5 1 . 1 2 1 1 1 1 1 1 . Garrison Access 9 | . . . . . 1 . . . . . 1 . . . . . . . . . . 1 . . . 1 1 1 2 1 . . . Network Hub 2 | . . . . . . . . . . . . . . . . . . . . . . . . . . 2 . . . . . . . Energy Cycler 1 | . . . . . . . . . . . . . . . . . . . . . . . 1 . . . . . . . . . . Machines Repaired . | . . . . . . . . . . . . . . . . . . . . . . . . . . . . . . . . . . Machines Dismantled . | . . . . . . . . . . . . . . . . . . . . . . . . . . . . . . . . . . Machines Sabotaged 2 | . . . . . . . . . . . . . . . . . . . . . . . . . . 2 . . . . . . . Overloaded Fab Kills . | . . . . . . . . . . . . . . . . . . . . . . . . . . . . . . . . . . Hacking | -11 -10 -10 -10 -9 -8 -7 -7 -7 -7 -6 -6 -6 -6 -5 -5 -5 -5 -5 -5 -5 -4 -4 -4 -4 -4 -4 -3 -3 -2 -2 -2 -1 -1 --------- Run | Yrd Mat Min Exi Min Mat Fac Low Low Zio Pro Fac Low Dat Pro Fac Was Fac Upp Upp War Pro Fac Ext Cet Arc Hub Res Tes Res Qua Frg Acc Gar Machines Accessed 109 | . 5 . . . 5 9 . . . 1 13 . 3 . 1 . 7 1 . 3 1 7 2 . . 9 8 12 2 9 5 6 . Terminals 59 | . 3 . . . 3 6 . . . 1 7 . . . 1 . 4 1 . . 1 3 2 . . 8 2 7 . 5 4 1 . Fabricators 5 | . . . . . . 1 . . . . 1 . . . . . . . . . . . . . . . 2 1 . . . . . Repair Stations 10 | . . . . . . . . . . . . . . . . . 2 . . . . 1 . . . . 2 2 . . 1 2 . Recycling Units 7 | . 2 . . . . 1 . . . . 2 . . . . . 1 . . . . . . . . . . . . . . 1 . Scanalyzers 11 | . . . . . 1 1 . . . . 2 . . . . . . . . . . 2 . . . . . 1 1 3 . . . Garrison Access 11 | . . . . . 1 . . . . . 1 . . . . . . . . . . 1 . . . 1 2 1 1 1 . 2 . Total Hacks 249 | . 5 . . . 6 14 . . . 1 27 . 23 . 1 . 16 1 . 9 1 14 3 . . 22 26 27 4 14 20 15 . Successful 130 | . 5 . . . 3 3 . . . 1 10 . 23 . 1 . 5 1 . 9 1 11 2 . . 11 10 17 2 4 9 2 . Failed 118 | . . . . . 3 11 . . . . 17 . . . . . 11 . . . . 3 1 . . 11 16 10 2 9 11 13 . Catastrophic 31 | . . . . . 1 6 . . . . . . . . . . 2 . . . . 1 . . . 2 3 5 1 2 4 4 . Database Lockouts 1 | . . . . . . . . . . . . . . . . . . . . . . . . . . . . . . 1 . . . Manual 53 | . 2 . . . 2 1 . . . . 9 . . . . . 4 . . 1 . . 3 1 . 10 . 7 . 3 8 2 . Terminals 120 | . 3 . . . 4 11 . . . 1 15 . . . 1 . 9 1 . . 1 4 3 . . 20 5 18 . 7 13 4 . Fabricators 7 | . . . . . . 1 . . . . 1 . . . . . . . . . . . . . . . 4 1 . . . . . Repair Stations 38 | . . . . . . . . . . . . . . . . . 3 . . . . 3 . . . . 13 6 . . 7 6 . Recycling Units 15 | . 2 . . . . 1 . . . . 6 . . . . . 4 . . . . . . . . . . . . . . 2 . Scanalyzers 20 | . . . . . 1 1 . . . . 4 . . . . . . . . . . 5 . . . . . 1 2 6 . . . Garrison Access 17 | . . . . . 1 . . . . . 1 . . . . . . . . . . 2 . . . 2 4 1 2 1 . 3 . Terminal Hacks 75 | . 3 . . . 1 2 . . . 1 4 . 23 . 1 . 2 1 . 9 1 3 2 . . 6 1 8 . 1 6 . . Record 10 | . . . . . . . . . . . . . 6 . . . . 1 . . 1 1 . . . . . . . 1 . . . Part Schematic 12 | . . . . . . . . . . . . . 11 . . . . . . . . . . . . . . 1 . . . . . Robot Schematic 3 | . . . . . . . . . . . . . 3 . . . . . . . . . . . . . . . . . . . . Prototype ID Bank 11 | . . . . . . . . . . . . . 3 . . . . . . 8 . . . . . . . . . . . . . Open Door 2 | . . . . . . . . . . 1 . . . . . . . . . 1 . . . . . . . . . . . . . Open DSF 1 | . . . . . . 1 . . . . . . . . . . . . . . . . . . . . . . . . . . . Level Access Points 1 | . . . . . . . . . . . . . . . . . . . . . . . . . . . . . . . 1 . . Branch Access Points 5 | . . . . . 1 . . . . . 1 . . . . . 1 . . . . 1 . . . . . 1 . . . . . Emergency Access Points 1 | . . . . . . . . . . . . . . . . . . . . . . . . . . . . 1 . . . . . Alert Level 3 | . . . . . . . . . . . 1 . . . . . . . . . . . 1 . . . . . . . 1 . . Unreport Threat 8 | . . . . . . . . . . . 1 . . . . . . . . . . . 1 . . 2 . 1 . . 3 . . Locate Traps 5 | . 2 . . . . 1 . . . . . . . . . . 1 . . . . 1 . . . . . . . . . . . Dispatch Records 1 | . . . . . . . . . . . . . . . . . . . . . . . . . . 1 . . . . . . . Patrol Status 2 | . . . . . . . . . . . 1 . . . . . . . . . . . . . . . . 1 . . . . . Recall Extermination 1 | . . . . . . . . . . . . . . . . . . . . . . . . . . . . 1 . . . . . Hauler Manifests 4 | . 1 . . . . . . . . . . . . . 1 . . . . . . . . . . . 1 . . . 1 . . Registered Components 1 | . . . . . . . . . . . . . . . . . . . . . . . . . . 1 . . . . . . . Registered Prototypes 1 | . . . . . . . . . . . . . . . . . . . . . . . . . . . . 1 . . . . . Zone Layout 2 | . . . . . . . . . . . . . . . . . . . . . . . . . . 2 . . . . . . . Protovariant Controls 1 | . . . . . . . . . . . . . . . . . . . . . . . . . . . . 1 . . . . . Fabricator Hacks 1 | . . . . . . . . . . . . . . . . . . . . . . . . . . . 1 . . . . . . Network Status 1 | . . . . . . . . . . . . . . . . . . . . . . . . . . . 1 . . . . . . Repair Station Hacks 18 | . . . . . . . . . . . . . . . . . 1 . . . . 2 . . . . 7 5 . . 3 . . Scan Component 10 | . . . . . . . . . . . . . . . . . . . . . . 1 . . . . 4 3 . . 2 . . Repair 7 | . . . . . . . . . . . . . . . . . . . . . . 1 . . . . 3 2 . . 1 . . Refit 1 | . . . . . . . . . . . . . . . . . 1 . . . . . . . . . . . . . . . . Recycling Unit Hacks 1 | . . . . . . . . . . . 1 . . . . . . . . . . . . . . . . . . . . . . Process 1 | . . . . . . . . . . . 1 . . . . . . . . . . . . . . . . . . . . . . Scanalyzer 12 | . . . . . 1 1 . . . . 1 . . . . . . . . . . 5 . . . . . 1 1 2 . . . Insert Component 3 | . . . . . 1 1 . . . . . . . . . . . . . . . . . . . . . . . 1 . . . Retrieve Study 9 | . . . . . . . . . . . 1 . . . . . . . . . . 5 . . . . . 1 1 1 . . . Garrison Access Hacks 9 | . . . . . 1 . . . . . 1 . . . . . . . . . . 1 . . . 1 1 1 1 1 . 1 . Unlock Access 1 | . . . . . . . . . . . . . . . . . . . . . . . . . . . . . . . . 1 . Seal Access 8 | . . . . . 1 . . . . . 1 . . . . . . . . . . 1 . . . 1 1 1 1 1 . . . Unauthorized Hacks 14 | . 2 . . . . . . . . . 3 . . . . . 2 . . . . . . . . 4 . 2 . . . 1 . Terminals 6 | . . . . . . . . . . . . . . . . . . . . . . . . . . 4 . 2 . . . . . Track 2 | . . . . . . . . . . . . . . . . . . . . . . . . . . . . 2 . . . . . Assimilate 2 | . . . . . . . . . . . . . . . . . . . . . . . . . . 2 . . . . . . . Sabotage 2 | . . . . . . . . . . . . . . . . . . . . . . . . . . 2 . . . . . . . Fabricators . | . . . . . . . . . . . . . . . . . . . . . . . . . . . . . . . . . . Repair Stations . | . . . . . . . . . . . . . . . . . . . . . . . . . . . . . . . . . . Recycling Units 8 | . 2 . . . . . . . . . 3 . . . . . 2 . . . . . . . . . . . . . . 1 . Reject 1 | . . . . . . . . . . . 1 . . . . . . . . . . . . . . . . . . . . . . Recyclers 3 | . . . . . . . . . . . 1 . . . . . 1 . . . . . . . . . . . . . . 1 . Mask 2 | . . . . . . . . . . . 1 . . . . . 1 . . . . . . . . . . . . . . . . Tunnel 2 | . 2 . . . . . . . . . . . . . . . . . . . . . . . . . . . . . . . . Scanalyzers . | . . . . . . . . . . . . . . . . . . . . . . . . . . . . . . . . . . Garrison Access . | . . . . . . . . . . . . . . . . . . . . . . . . . . . . . . . . . . Data Cores Recovered 4 | . . . . . 1 . . . . . . . . . . . 1 . . . . 2 . . . . . . . . . . . Used 2 | . . . . . . . . . . . . . . . . . 1 . . . . 1 . . . . . . . . . . . Hacking Detections 69 | . 1 . . . 4 7 . . . . 12 . . . 1 . 7 1 . . . 5 1 . . 4 5 6 1 5 5 4 . Full Trace Events 6 | . . . . . . 1 . . . . 1 . . . . . 1 . . . . 1 . . . 1 . . . . . 1 . Feedback Events . | . . . . . . . . . . . . . . . . . . . . . . . . . . . . . . . . . . Feedback Blocked . | . . . . . . . . . . . . . . . . . . . . . . . . . . . . . . . . . . Robot Schematics Acquired 3 | . . . . . . . . . . . . . 3 . . . . . . . . . . . . . . . . . . . . Robots Built . | . . . . . . . . . . . . . . . . . . . . . . . . . . . . . . . . . . Authchips . | . . . . . . . . . . . . . . . . . . . . . . . . . . . . . . . . . . Time . | . . . . . . . . . . . . . . . . . . . . . . . . . . . . . . . . . . Total Robot Build Rating . | . . . . . . . . . . . . . . . . . . . . . . . . . . . . . . . . . . Part Schematics Acquired 12 | . . . . . . . . . . . . . 11 . . . . . . . . . . . . . . 1 . . . . . Parts Built . | . . . . . . . . . . . . . . . . . . . . . . . . . . . . . . . . . . Authchips . | . . . . . . . . . . . . . . . . . . . . . . . . . . . . . . . . . . Time . | . . . . . . . . . . . . . . . . . . . . . . . . . . . . . . . . . . Total Part Build Rating . | . . . . . . . . . . . . . . . . . . . . . . . . . . . . . . . . . . Part Studies Acquired 9 | . . . . . . . . . . . 1 . . . . . . . . . . 5 . . . . . 1 1 1 . . . Parts Repaired 7 | . . . . . . . . . . . . . . . . . . . . . . 1 . . . . 3 2 . . 1 . . Time 458 | . . . . . . . . . . . . . . . . . . . . . . 89 . . . . 142 173 . . 54 . . Parts Recycled . | . . . . . . . . . . . . . . . . . . . . . . . . . . . . . . . . . . Recycled Matter 36 | . . . . . . . . . . . 36 . . . . . . . . . . . . . . . . . . . . . . Retrieved Matter . | . . . . . . . . . . . . . . . . . . . . . . . . . . . . . . . . . . Retrieved Components . | . . . . . . . . . . . . . . . . . . . . . . . . . . . . . . . . . . Parts Scanalyzed . | . . . . . . . . . . . . . . . . . . . . . . . . . . . . . . . . . . Part Schematics Acquired . | . . . . . . . . . . . . . . . . . . . . . . . . . . . . . . . . . . Parts Damaged . | . . . . . . . . . . . . . . . . . . . . . . . . . . . . . . . . . . Bothacking | -11 -10 -10 -10 -9 -8 -7 -7 -7 -7 -6 -6 -6 -6 -5 -5 -5 -5 -5 -5 -5 -4 -4 -4 -4 -4 -4 -3 -3 -2 -2 -2 -1 -1 ------------ Run | Yrd Mat Min Exi Min Mat Fac Low Low Zio Pro Fac Low Dat Pro Fac Was Fac Upp Upp War Pro Fac Ext Cet Arc Hub Res Tes Res Qua Frg Acc Gar Used RIF Installer . | . . . . . . . . . . . . . . . . . . . . . . . . . . . . . . . . . . Robots Hacked 2 | . . . . . . . . . . . . . . . . . . . . . . . . . 2 . . . . . . . . Non-combat 2 | . . . . . . . . . . . . . . . . . . . . . . . . . 2 . . . . . . . . Combat . | . . . . . . . . . . . . . . . . . . . . . . . . . . . . . . . . . . Robot Hacks Applied 3 | . . . . . . . . . . . . . . . . . . . . . . . . . 3 . . . . . . . . check_alert 3 | . . . . . . . . . . . . . . . . . . . . . . . . . 3 . . . . . . . . Relay Couplers Released 2 | . . . . . . . . . . . . . . . . . . . . . . . . . . . . . 2 . . . . Machine Destruction 2 | . . . . . . . . . . . . . . . . . . . . . . . . . . . . . 2 . . . . Fabnet Peak Effective % . | . . . . . . . . . . . . . . . . . . . . . . . . . . . . . . . . . . Robots Rewired 9 | . . . . . . . . . . 5 . . . . . . . . . . . . 4 . . . . . . . . . . Allies Hacked 3 | . . . . . . . . . . 1 . . . . . . 2 . . . . . . . . . . . . . . . . Hacks Repelled . | . . . . . . . . . . . . . . . . . . . . . . . . . . . . . . . . . . Allies | -11 -10 -10 -10 -9 -8 -7 -7 -7 -7 -6 -6 -6 -6 -5 -5 -5 -5 -5 -5 -5 -4 -4 -4 -4 -4 -4 -3 -3 -2 -2 -2 -1 -1 -------- Run | Yrd Mat Min Exi Min Mat Fac Low Low Zio Pro Fac Low Dat Pro Fac Was Fac Upp Upp War Pro Fac Ext Cet Arc Hub Res Tes Res Qua Frg Acc Gar Total Allies 42 | . . 1 . . . . . . . 6 . . . . . 18 . . . . . . 11 5 . 1 . . . . . . . Largest Group 18 | . . 1 1 . . . . . . 4 . . . . . 18 11 . . . . . 8 5 3 2 . . . . . . . Highest-Rated Group 638 | . . 31 31 . . . . . . 56 . . . . . 638 413 . . . . . 536 406 274 192 . . . . . . . Highest-Rated Ally 159 | . . 31 31 . . . . . . 32 . . . . . 50 46 . . . . . 159 139 96 96 . . . . . . . Total Orders 3 | . . . . . . . . . . . . . . . . . . . . . . . . 3 . . . . . . . . . STAY 2 | . . . . . . . . . . . . . . . . . . . . . . . . 2 . . . . . . . . . FOLLOW 1 | . . . . . . . . . . . . . . . . . . . . . . . . 1 . . . . . . . . . Ally Attacks 321 | . . 5 . . . . . . . 21 . . . . . 101 42 . . . . . 86 30 19 17 . . . . . . . Total Damage 9558 | . . 40 . . . . . . . 252 . . . . . 2819 1077 . . . . . 2674 1361 618 717 . . . . . . . Kills 49 | . . . . . . . . . . 2 . . . . . 7 10 . . . . . 24 2 2 2 . . . . . . . Allies Corrupted 1 | . . . . . . . . . . . . . . . . . 1 . . . . . . . . . . . . . . . . Allies Melted 5 | . . . . . . . . . . . . . . . . . 2 . . 1 . . . . . . . . 2 . . . . Intel | -11 -10 -10 -10 -9 -8 -7 -7 -7 -7 -6 -6 -6 -6 -5 -5 -5 -5 -5 -5 -5 -4 -4 -4 -4 -4 -4 -3 -3 -2 -2 -2 -1 -1 ------- Run | Yrd Mat Min Exi Min Mat Fac Low Low Zio Pro Fac Low Dat Pro Fac Was Fac Upp Upp War Pro Fac Ext Cet Arc Hub Res Tes Res Qua Frg Acc Gar Active Infowar (turns) 19543 | 16 1605 887 76 161 683 1436 528 700 671 1469 969 260 97 169 77 259 348 214 128 1061 490 427 849 275 678 241 1399 746 1106 540 336 439 203 Optics 8586 | . . . . . . . . . . . . . . . . . . . . 857 490 427 849 275 678 241 1399 746 1106 540 336 439 203 Sensors 8278 | . . . . . . 1065 528 629 669 1467 890 260 3 98 72 257 323 . . . . . . 53 12 . 918 390 389 255 . . . IFF 1294 | . . . . . . . . . . . . . . . . . . 214 128 207 379 262 104 . . . . . . . . . . Structural 1697 | . . 777 76 161 683 . . . . . . . . . . . . . . . . . . . . . . . . . . . . Seismic 2115 | 16 1605 110 . . . . . . . . . . . . . . . . . . . . . . . . 384 . . . . . . T.N.C. 2057 | . . . . . . . . . . . 348 260 97 169 77 259 100 . . . . . . . . . 521 56 170 . . . . Triangulation 508 | . . . . . . . . . . . . . . . . . . . . . . 10 . . . . . . . . 124 223 151 Cloaking 2 | . . . . . . . . . . . . . . . . . . . . . . . . . . . 2 . . . . . . Jamming 1817 | . . . . . . 371 . 71 2 2 52 . . 1 . . 25 . . . . 39 29 55 549 203 . 155 220 . 38 5 . ECM 52 | . . . . . . . . . . . . . . . . . . . . . . . . . . . . . . . . 52 . Robot Analysis Total . | . . . . . . . . . . . . . . . . . . . . . . . . . . . . . . . . . . Derelict Logs Recovered 13 | . . 2 . . . . 2 1 1 2 . 2 . . . . . 2 . . 1 . . . . . . . . . . . . Drone Launches . | . . . . . . . . . . . . . . . . . . . . . . . . . . . . . . . . . . Drone Recoveries . | . . . . . . . . . . . . . . . . . . . . . . . . . . . . . . . . . . Exploration | -11 -10 -10 -10 -9 -8 -7 -7 -7 -7 -6 -6 -6 -6 -5 -5 -5 -5 -5 -5 -5 -4 -4 -4 -4 -4 -4 -3 -3 -2 -2 -2 -1 -1 ------------- Run | Yrd Mat Min Exi Min Mat Fac Low Low Zio Pro Fac Low Dat Pro Fac Was Fac Upp Upp War Pro Fac Ext Cet Arc Hub Res Tes Res Qua Frg Acc Gar Turns Passed 22769 | 35 1605 1145 76 161 2069 1452 528 724 1564 1987 995 260 97 169 77 259 400 242 129 1066 490 427 849 275 678 241 1399 746 1106 540 336 439 203 Spaces Moved 25796 | 21 684 676 65 107 1069 810 378 497 1171 1288 1714 587 80 252 141 343 814 712 459 1679 737 895 1014 282 202 456 2755 1232 2009 1105 677 778 107 Core 175 | . . . 31 27 . . . . . . . . 27 . . . . . . 7 . 2 . . . . . . . . . 8 73 Treads 2378 | . 383 676 34 80 631 574 . . . . . . . . . . . . . . . . . . . . . . . . . . . Legs 4414 | 21 301 . . . 438 236 378 497 1171 1288 84 . . . . . . . . . . . . . . . . . . . . . . Wheels . | . . . . . . . . . . . . . . . . . . . . . . . . . . . . . . . . . . Hover . | . . . . . . . . . . . . . . . . . . . . . . . . . . . . . . . . . . Flight 18829 | . . . . . . . . . . . 1630 587 53 252 141 343 814 712 459 1672 737 893 1014 282 202 456 2755 1232 2009 1105 677 770 34 Fastest Speed 19 | 120 120 160 50 50 130 130 130 130 130 127 25 31 31 31 31 31 24 24 24 20 25 25 25 25 25 25 27 33 29 34 30 19 34 Average Speed 58 | 120 142 160 107 132 149 151 130 130 130 127 32 31 115 35 35 31 27 24 24 23 25 25 25 25 25 25 32 33 29 34 32 24 111 Slowest Speed 400 | 120 160 160 160 160 240 270 130 130 130 130 127 31 400 37 37 31 114 24 24 200 25 200 25 25 25 103 111 33 101 34 108 109 277 Overloaded Moves 9 | . . . . . . . . . . . . . . . . . . . . . . . . . . 9 . . . . . . . Propulsion Burnouts . | . . . . . . . . . . . . . . . . . . . . . . . . . . . . . . . . . . Robots Hopped 136 | . . . . . . . . . . . 20 . . 1 . 2 15 2 . 5 . 9 15 . . 8 8 9 12 9 6 15 . Potential Cave-ins 4 | . . . . . . . . . . . . . . . . . . . . 1 . . . . . 3 . . . . . . . Cave-ins Triggered 1 | . . . . . . . . . . . . . . . . . . . . 1 . . . . . . . . . . . . . Exploration Rate (%) 57 | 3 95 99 12 31 84 27 66 64 85 80 47 54 70 58 3 96 18 87 68 91 87 26 90 61 91 37 62 78 61 90 22 18 8 Regions Visited 33 Branch Regions 21 Pre-discovered Areas 10 | . 2 1 . 1 . . 1 1 2 . . 1 1 . . . . . . . . . . . . . . . . . . . . Known Exits Taken 18 | . . . . . . 1 1 1 1 1 1 1 1 1 . . 1 1 . . . 1 . . . . 1 1 1 1 1 1 . Unknown Exits Taken 13 | 1 1 1 1 1 1 . . . . . . . . . . . . . 1 1 1 . 1 1 1 1 . . . . . . . Scrap Searched 28 | . . 2 . 1 . . 2 3 2 2 . 2 . 3 . . . 3 4 . 4 . . . . . . . . . . . . Spaces Dug 57 | . . . . . 6 . . . . . 3 . . . . . 1 . 3 8 . 11 . . . 9 3 3 7 2 . . 1 Terrain Destroyed 766 | . . . . . 80 . . 72 . 70 74 . . 43 20 28 38 20 7 82 14 79 25 30 13 19 12 10 14 6 7 2 1 Melee 1 | . . . . . . . . . . . . . . . . . . . . . . . . . . . . . . . . . 1 Projectile 375 | . . . . . 24 . . 8 . 1 7 . . . . 14 38 20 7 82 14 36 25 30 13 19 6 6 10 6 7 2 . AOE 372 | . . . . . 56 . . 64 . 65 67 . . 43 20 14 . . . . . 43 . . . . . . . . . . . Terrain Rammed . | . . . . . . . . . . . . . . . . . . . . . . . . . . . . . . . . . . Walls Destroyed . | . . . . . . . . . . . . . . . . . . . . . . . . . . . . . . . . . . Machines Disabled . | . . . . . . . . . . . . . . . . . . . . . . . . . . . . . . . . . . Actions | -11 -10 -10 -10 -9 -8 -7 -7 -7 -7 -6 -6 -6 -6 -5 -5 -5 -5 -5 -5 -5 -4 -4 -4 -4 -4 -4 -3 -3 -2 -2 -2 -1 -1 --------- Run | Yrd Mat Min Exi Min Mat Fac Low Low Zio Pro Fac Low Dat Pro Fac Was Fac Upp Upp War Pro Fac Ext Cet Arc Hub Res Tes Res Qua Frg Acc Gar Total 31546 | 25 1266 709 72 118 1417 972 408 535 1213 1502 2050 650 87 325 163 428 900 753 471 2166 1017 1028 1524 424 798 524 3137 1460 2378 1197 735 941 153 Wait 3819 | . 489 13 . 3 164 60 25 6 7 73 201 57 2 62 10 49 38 31 6 341 254 85 404 88 567 46 252 129 226 34 32 62 3 Move 25510 | 20 683 675 64 106 1068 809 378 496 1170 1287 1675 586 79 249 141 339 784 707 458 1670 736 877 985 281 201 439 2738 1213 1987 1088 665 749 107 Hop 120 | . . . . . . . . . . . 18 . . 1 . 1 14 2 . 3 . 8 13 . . 8 8 9 9 7 5 14 . Pick Up 143 | . 9 1 . 1 27 10 . . 2 5 4 . . 1 2 2 3 . 1 8 1 7 5 5 . . 16 4 9 7 3 10 . Fast Attach 227 | 1 2 . . 2 23 10 . 3 13 7 13 . 3 1 4 3 8 . . 18 3 5 2 6 5 4 24 11 18 5 2 22 9 Attach 62 | . . 1 . 2 2 4 . . 1 3 11 . . 2 2 . . . . 1 . 5 1 1 1 . 4 2 5 1 2 9 2 Detach 58 | . . . . . 8 . . . 3 2 8 . . 1 . 2 2 . . 3 . . . 1 1 1 6 3 6 . . 10 1 Swap 214 | 1 4 2 1 . 23 9 1 7 4 18 16 1 . 2 . 1 6 2 1 13 7 5 8 4 4 . 6 15 33 7 7 6 . Drop 310 | . 9 1 6 . 34 18 . . 13 14 25 . 3 2 1 3 11 . 1 28 4 7 7 12 4 4 30 11 26 10 2 24 . Fire 851 | 3 25 15 1 4 67 43 4 23 . 63 49 6 . 4 3 28 34 11 4 80 12 29 37 26 12 22 53 63 59 23 17 19 12 Melee 26 | . 2 . . . . . . . . . . . . . . . . . . . . . . . 3 . . . . . . 12 9 Ram 2 | . . . . . . . . . . . . . . . . . . . . . . . . . . . . . . . . . 2 Kick 7 | . . . . . 1 6 . . . . . . . . . . . . . . . . . . . . . . . . . . . Crush 5 | . 1 1 . . . 3 . . . . . . . . . . . . . . . . . . . . . . . . . . . Escape Stasis 72 | . . . . . . . . . . . 30 . . . . . . . . . . . 15 . . . . . . 15 . 4 8 Rewire 78 | . . . . . . . . . . 30 . . . . . . . . . 1 . . 47 . . . . . . . . . . Trap 42 | . 42 . . . . . . . . . . . . . . . . . . . . . . . . . . . . . . . . Miscellaneous . | . . . . . . . . . . . . . . . . . . . . . . . . . . . . . . . . . . Route ------- -11/Scrapyard -10/Materials (discovered 5 exits: [*Mat x3] / [*Min x2]) -10/Mines (discovered 4 exits: [*Mat x2] / [*Exi] / [*Sub]) -10/Exiles -9/Mines -8/Materials (discovered 2 exits: *Fac x2) -7/Factory -7/Lower Caves -7/Lower Caves (discovered 2 exits: *Fac / *Zio) -7/Zion -6/Proximity Caves -6/Factory (discovered 3 exits: *Fac / *Low x2) -6/Lower Caves -6/Data Miner -5/Proximity Caves -5/Factory -5/Waste -5/Factory (discovered 2 exits: *Upp x2) -5/Upper Caves -5/Upper Caves (discovered 2 exits: *Fac / *War) -5/Warlord -4/Proximity Caves -4/Factory (discovered 6 exits: *Res / Upp x2 / *Ext x2 / Arm) -4/Extension (discovered 3 exits: *Res x2 / *Cet) -4/Cetus (discovered 2 exits: *Res / [*Arc]) -4/Archives (discovered 3 exits: *Res / *Hub x2) -4/Hub_04(d) -3/Research (discovered 3 exits: *Res x2 / *Tes) -3/Testing -2/Research (discovered 3 exits: *Acc / *Qua x2) -2/Quarantine (discovered 3 exits: *Acc / [*Sec] / *Frg) -2/Protoforge -1/Access -1/Garrison History --------- Turn | Location | Event 1 | -11/Scrapyard | Discovered new exit (range 3) 36 | -11/Scrapyard | Entered Materials 166 | -10/Materials | Discovered new exit (range 11) 263 | -10/Materials | Discovered new exit (range 8) 302 | -10/Materials | Build established: Mutant 397 | -10/Materials | Discovered new exit (range 16) 536 | -10/Materials | Derelicts attacked the area 558 | -10/Materials | Discovered new exit (range 16) 1164 | -10/Materials | Discovered new exit (range 15) 1641 | -10/Materials | Entered Mines 1699 | -10/Mines | Learned Materials stockpile data 1702 | -10/Mines | Discovered new exit (range 9) 1787 | -10/Mines | Discovered new exit (range 13) 1788 | -10/Mines | Escorted by a lone wolf Derelict 1865 | -10/Mines | Discovered new exit (range 6) 2058 | -10/Mines | Learned location of Zion (-7) 2430 | -10/Mines | Deemed a non-threat by the Exiles lab entrance 2430 | -10/Mines | Discovered new exit (range 6) 2786 | -10/Mines | Entered Exiles 2786 | -10/Exiles | Accompanied by 1 ally 2807 | -10/Exiles | Discovered new exit (range 15) 2826 | -10/Exiles | Met 8R-AWN 2843 | -10/Exiles | Attacked by the Exiles 2846 | -10/Exiles | Core integrity fell below 50% 2862 | -10/Exiles | Entered Mines 2864 | -9/Mines | Learned location of Storage (-9) 2874 | -9/Mines | Discovered new exit (range 6) 3023 | -9/Mines | Entered Materials 3023 | -8/Materials | Evolved 4 slots: Propulsion x2, Weapon x2 3117 | -8/Materials | Found Powered Armor 3119 | -8/Materials | Found Powered Armor 3121 | -8/Materials | Found Powered Armor 3124 | -8/Materials | Found Powered Armor 3269 | -8/Materials | Discovered new exit (range 15) 3758 | -8/Materials | Build established: Skirmisher 4118 | -8/Materials | Build established: Tank 4186 | -8/Materials | Destroyed 7 combat bots 4291 | -8/Materials | Discovered new exit (range 6) 5092 | -8/Materials | Entered Factory 5092 | -7/Factory | Evolved 2 slots: Utility x2 5188 | -7/Factory | Identified exit to DSF 5398 | -7/Factory | Build established: Skirmisher 6002 | -7/Factory | Build established: Tank 6405 | -7/Factory | Discovered new exit (range 16) 6431 | -7/Factory | Identified exit to Lower Caves 6544 | -7/Factory | Entered Lower Caves 6571 | -7/Lower Caves | Build established: Skirmisher 6671 | -7/Lower Caves | Learned Factory security intel 7066 | -7/Lower Caves | Discovered new exit (range 5) 7071 | -7/Lower Caves | Identified exit to Lower Caves 7072 | -7/Lower Caves | Entered another Lower Caves area 7187 | -7/Lower Caves | Discovered new exit (range 12) 7290 | -7/Lower Caves | Attracted the attention of an 0b10 checkpoint 7651 | -7/Lower Caves | Discovered new exit (range 11) 7794 | -7/Lower Caves | Identified exit to Zion 7796 | -7/Lower Caves | Entered Zion 7836 | -7/Zion | System corruption cleaned by Quarantine Array 7925 | -7/Zion | Visited the Megawrench Repair Shop 7925 | -7/Zion | Megawrench repaired 11 parts 8026 | -7/Zion | Found Prototype Launcher 8026 | -7/Zion | Identified Rocket Array 8170 | -7/Zion | System corruption cleaned by Quarantine Array 8334 | -7/Zion | Build established: Mutant 8515 | -7/Zion | Learned Factory terminal intel 8518 | -7/Zion | Learned location of Warlord (-5) 8523 | -7/Zion | Acquired unknown access codes intercepted by a Zionite 8589 | -7/Zion | Given A8's code to call for help 8694 | -7/Zion | Build established: Gunner 8927 | -7/Zion | Met Imprinter 9032 | -7/Zion | Learned location of Data Miner (-6) 9331 | -7/Zion | Discovered new exit (range 11) 9357 | -7/Zion | Identified exit to Proximity Caves 9360 | -7/Zion | Entered Proximity Caves 9362 | -6/Proximity Caves | Greeted by an Infiltrator in a former 0b10 base 9457 | -6/Proximity Caves | Spotter reported a threat 9458 | -6/Proximity Caves | Spotter reported a threat 9464 | -6/Proximity Caves | Former 0b10 base attacked by MAIN.C 9677 | -6/Proximity Caves | Lost 5 allies 9860 | -6/Proximity Caves | 0b10 base defense nominally successful 9895 | -6/Proximity Caves | Lost 16 allies 10230 | -6/Proximity Caves | Build established: Skirmisher 10853 | -6/Proximity Caves | Identified exit to Factory 10855 | -6/Proximity Caves | Learned 12 Factory zone layouts 11040 | -6/Proximity Caves | Attracted the attention of an 0b10 outpost 11347 | -6/Proximity Caves | Entered Factory 11347 | -6/Factory | Evolved 2 slots: Propulsion x1, Utility x1 11348 | -6/Factory | Identified exit to Lower Caves 11350 | -6/Factory | Loaded intel: 26 terminal locations 11697 | -6/Factory | Search patrols dispatched 11824 | -6/Factory | Build established: Sprinter 12025 | -6/Factory | Discovered new exit (range 5) 12026 | -6/Factory | Identified exit to Factory 12342 | -6/Factory | Entered Lower Caves 12455 | -6/Lower Caves | Encountered a Warlord checkpoint 12496 | -6/Lower Caves | Build established: Scout 12529 | -6/Lower Caves | Spotted B-75 Beast 12540 | -6/Lower Caves | Learned Factory stockpile data 12577 | -6/Lower Caves | A Derelict revealed a hidden shortcut to meet someone special 12579 | -6/Lower Caves | Identified exit to Data Miner 12602 | -6/Lower Caves | Entered Data Miner 12602 | -6/Data Miner | Discovered new exit (range 6) 12612 | -6/Data Miner | Met Data Miner 12618 | -6/Data Miner | Learned location of Section 7 (-2) 12618 | -6/Data Miner | Acquired the access code to Warlord's prototype stash 12626 | -6/Data Miner | Received God Mode back door access code from Data Miner 12695 | -6/Data Miner | Identified exit to Proximity Caves 12699 | -6/Data Miner | Entered Proximity Caves 12707 | -5/Proximity Caves | Attracted the attention of an 0b10 outpost 12808 | -5/Proximity Caves | Spotted B-75 Beast 12851 | -5/Proximity Caves | Discovered exit to Factory (range 9) 12868 | -5/Proximity Caves | Entered Factory 12868 | -5/Factory | Evolved 2 slots: Power x1, Propulsion x1 12945 | -5/Factory | Sucked down chute 12945 | -5/Factory | Entered Waste 12960 | -5/Waste | Spotted C-40 Crusher 12968 | -5/Waste | Destroyed C-40 Crusher 12972 | -5/Waste | Spotted C-40 Crusher 12972 | -5/Waste | Spotted C-40 Crusher 13038 | -5/Waste | Destroyed C-40 Crusher 13054 | -5/Waste | Destroyed C-40 Crusher 13058 | -5/Waste | Spotted C-40 Crusher 13069 | -5/Waste | Spotted C-40 Crusher 13085 | -5/Waste | Warlord forces began an assault 13110 | -5/Waste | Allies destroyed C-40 Crusher 13133 | -5/Waste | Spotted C-40 Crusher 13134 | -5/Waste | Allies destroyed C-40 Crusher 13147 | -5/Waste | Allies destroyed C-40 Crusher 13155 | -5/Waste | Discovered new exit (range 12) 13177 | -5/Waste | Lost 5 allies 13179 | -5/Waste | Identified exit to Factory 13204 | -5/Waste | Entered Factory 13204 | -5/Factory | Accompanied by 11 allies 13329 | -5/Factory | Identified exit to Upper Caves 13586 | -5/Factory | Garrison activated, responded to threat 13604 | -5/Factory | Entered Upper Caves 13605 | -5/Upper Caves | Encountered a Warlord checkpoint 13606 | -5/Upper Caves | Learned 4 Factory zone layouts 13616 | -5/Upper Caves | Build established: Sprinter 13726 | -5/Upper Caves | Identified exit to Upper Caves 13846 | -5/Upper Caves | Entered another Upper Caves area 13883 | -5/Upper Caves | Spotted B-75 Beast 13884 | -5/Upper Caves | Discovered new exit (range 5) 13939 | -5/Upper Caves | Discovered new exit (range 7) 13975 | -5/Upper Caves | Entered Warlord 13991 | -5/Warlord | Discovered new exit (range 12) 14123 | -5/Warlord | Warlord's base attacked by MAIN.C 14134 | -5/Warlord | Found Prototype Energy Gun 14134 | -5/Warlord | Identified Vortex Shotgun 14165 | -5/Warlord | Opened Warlord's prototype stash 14177 | -5/Warlord | Found Prototype Hackware 14181 | -5/Warlord | Found Prototype Device 14181 | -5/Warlord | Identified Thermal Barrier 14184 | -5/Warlord | Found Prototype Processor 14184 | -5/Warlord | Identified Spectral Analyzer 14201 | -5/Warlord | Met Warlord 14221 | -5/Warlord | Spotted B-86 Titan 14249 | -5/Warlord | Destroyed B-86 Titan 14323 | -5/Warlord | Warlord forces counterattacked 14367 | -5/Warlord | P-70 Sage assimilated allied XH-IUG(g) 14424 | -5/Warlord | Spotted Striker 14424 | -5/Warlord | Spotted B-86 Titan 14442 | -5/Warlord | Destroyed B-86 Titan 14484 | -5/Warlord | Lost 17 allies 14523 | -5/Warlord | Spotted B-75 Beast 14523 | -5/Warlord | Spotted B-86 Titan 14601 | -5/Warlord | Lost 12 allies 14712 | -5/Warlord | Build established: Scavenger-Sprinter 14751 | -5/Warlord | Spotted Executioner 14772 | -5/Warlord | Spotted Executioner 14795 | -5/Warlord | Spotted Striker 14798 | -5/Warlord | Warlord base infiltrated, sounded retreat 14866 | -5/Warlord | Spotted Striker 14870 | -5/Warlord | Spotted Striker 14958 | -5/Warlord | Spotted Striker 14961 | -5/Warlord | Spotted B-86 Titan 14962 | -5/Warlord | Spotted B-75 Beast 14976 | -5/Warlord | Destroyed Striker 14983 | -5/Warlord | Destroyed B-75 Beast 15006 | -5/Warlord | Crushed by falling debris 15006 | -5/Warlord | System corruption reached 10% 15020 | -5/Warlord | Lost 10 allies 15025 | -5/Warlord | Spotted Striker 15025 | -5/Warlord | Spotted Striker 15037 | -5/Warlord | Lost 3 parts (1p2n) 15041 | -5/Warlord | Entered Proximity Caves 15053 | -4/Proximity Caves | Spotted B-86 Titan 15066 | -4/Proximity Caves | Lost 4 allies 15094 | -4/Proximity Caves | Destroyed B-86 Titan 15502 | -4/Proximity Caves | Discovered new exit (range 16) 15513 | -4/Proximity Caves | Learned location of 2 exits from Research 15531 | -4/Proximity Caves | Entered Factory 15531 | -4/Factory | Evolved 2 slots: Utility x2 15562 | -4/Factory | Identified exit to Upper Caves 15562 | -4/Factory | Identified exit to Extension 15562 | -4/Factory | Identified exit to Armory 15625 | -4/Factory | Garrison activated, responded to threat 15681 | -4/Factory | Repaired Enh. Coil Gun? 15890 | -4/Factory | Discovered new exit (range 23) 15958 | -4/Factory | Entered Extension 16019 | -4/Extension | Rescued a captive Derelict 16021 | -4/Extension | Rescued a captive Derelict 16049 | -4/Extension | Rescued a captive Derelict 16144 | -4/Extension | Rescued a captive Derelict 16146 | -4/Extension | Spotted B-86 Titan 16239 | -4/Extension | Rescued A7 16287 | -4/Extension | Energy Cycler disabled 16287 | -4/Extension | Rescued a captive Derelict 16287 | -4/Extension | Rescued a captive Derelict 16287 | -4/Extension | Rescued a captive Derelict 16287 | -4/Extension | Rescued a captive Derelict 16287 | -4/Extension | Rescued a captive Derelict 16290 | -4/Extension | Rescued a captive Derelict 16307 | -4/Extension | Enhanced Grunt warped into view, answering call for help 16309 | -4/Extension | Rescued a captive Derelict 16312 | -4/Extension | Enhanced Grunt warped into view, answering call for help 16318 | -4/Extension | Rescued a captive Derelict 16471 | -4/Extension | Spotted B-86 Titan 16482 | -4/Extension | Allies destroyed B-86 Titan 16492 | -4/Extension | Destroyed B-86 Titan 16496 | -4/Extension | Discovered new exit (range 16) 16672 | -4/Extension | Found Prototype Protection 16672 | -4/Extension | Identified Med. Regenerative Plating 16728 | -4/Extension | Discovered new exit (range 10) 16728 | -4/Extension | Discovered new exit (range 6) 16769 | -4/Extension | Disrupted transfer network 16807 | -4/Extension | Entered Cetus 16807 | -4/Cetus | Accompanied by 4 allies (A7) 16812 | -4/Cetus | Acquired a Cetus Manufacturing Module code from A7 16813 | -4/Cetus | Spotted Cetus Guard 16814 | -4/Cetus | Spotted Cetus Guard 16814 | -4/Cetus | Spotted Cetus Guard 16818 | -4/Cetus | Destroyed Cetus Guard 16828 | -4/Cetus | Destroyed Cetus Guard 16832 | -4/Cetus | Spotted Cetus Guard 16833 | -4/Cetus | Destroyed Cetus Guard 16851 | -4/Cetus | Destroyed Cetus Guard 16854 | -4/Cetus | Extracted ID and sensor layout for unrecognized location from A7's data core 16857 | -4/Cetus | Found Prototype Device 16857 | -4/Cetus | Identified Exp. Thermal Shield 16869 | -4/Cetus | Lost 3 allies 16881 | -4/Cetus | Started Cetus Manufacturing Module 16883 | -4/Cetus | Discovered new exit (range 23) 16906 | -4/Cetus | Manufactured an Enhanced Grunt 16931 | -4/Cetus | Manufactured an Enhanced Grunt 16955 | -4/Cetus | Spotted Cetus Guard 16955 | -4/Cetus | Spotted Cetus Guard 16955 | -4/Cetus | Spotted Cetus Guard 16955 | -4/Cetus | Spotted Cetus Guard 16956 | -4/Cetus | Manufactured an Enhanced Grunt 16981 | -4/Cetus | Manufactured an Enhanced Grunt 16990 | -4/Cetus | Allies destroyed Cetus Guard 16993 | -4/Cetus | Destroyed Cetus Guard 17006 | -4/Cetus | Manufactured an Enhanced Grunt 17011 | -4/Cetus | Destroyed Cetus Guard 17015 | -4/Cetus | Destroyed Cetus Guard 17020 | -4/Cetus | Identified System Mapper 17035 | -4/Cetus | Lost 3 allies 17035 | -4/Cetus | Discovered new exit (range 23) 17046 | -4/Cetus | Met Revision 17 17082 | -4/Cetus | Entered Archives 17082 | -4/Archives | Accompanied by 3 allies 17150 | -4/Archives | Discovered new exit (range 24) 17152 | -4/Archives | Discovered new exit (range 19) 17153 | -4/Archives | Discovered new exit (range 17) 17546 | -4/Archives | Build established: Scavenger-Gunner 17760 | -4/Archives | Entered Hub_04(d) 17760 | -4/Hub_04(d) | Accompanied by 2 allies 17868 | -4/Hub_04(d) | Discovered new exit (range 7) 17916 | -4/Hub_04(d) | Watched by a mysterious "MATRIX" hacker 17940 | -4/Hub_04(d) | Spotted B-86 Titan 17988 | -4/Hub_04(d) | Network Hub disabled 17990 | -4/Hub_04(d) | Network Hub disabled 17998 | -4/Hub_04(d) | Spotted Lightning 17999 | -4/Hub_04(d) | Spotted Lightning 18001 | -4/Hub_04(d) | Entered Research 18001 | -3/Research | Evolved 2 slots: Propulsion x1, Utility x1 18002 | -3/Research | Identified exit to Research 18002 | -3/Research | Identified exit to Testing 18019 | -3/Research | Lost 3 parts (1p1n1u) 18059 | -3/Research | Build established: Scavenger-Sprinter 18167 | -3/Research | Found Gamma Bomb Array 18201 | -3/Research | Revision forces began assault on 0b10 18296 | -3/Research | Met up with Revision 17++ 18423 | -3/Research | Found Prototype Processor 18423 | -3/Research | Identified Exp. Signal Interpreter 18615 | -3/Research | Discovered exit to Research (range 15) 18623 | -3/Research | Repaired Adv. KE Penetrator? 18701 | -3/Research | Research terminal network offline 18717 | -3/Research | Repaired Railgun+ 18757 | -3/Research | Build established: Scavenger-Scout 18796 | -3/Research | Lost 5 allies 19133 | -3/Research | Repaired Broken Adv. KE Penetrator 19400 | -3/Research | Entered Testing 19474 | -3/Testing | Spotted Striker 19474 | -3/Testing | Spotted Striker 19580 | -3/Testing | Destroyed 7 combat bots 19696 | -3/Testing | Repaired Broken Adv. KE Penetrator? 19805 | -3/Testing | Spotted Alpha 7 19903 | -3/Testing | Destroyed Alpha 7 19908 | -3/Testing | Found Prototype Processor 19908 | -3/Testing | Identified Exp. Targeting Computer 19910 | -3/Testing | Found Prototype Ballistic Gun 19910 | -3/Testing | Identified Multirail 19943 | -3/Testing | Discovered exit to Research (range 9) 19946 | -3/Testing | Protovariant out of control (PP-0D1A38SQSM) 19946 | -3/Testing | Unleashed a protovariant (PP-0D1A38SQSM) 20016 | -3/Testing | Found Prototype Energy Gun 20016 | -3/Testing | Identified Hyp. EM Gauss Rifle 20037 | -3/Testing | Spotted PP-0D1A38SQSM 20075 | -3/Testing | Repaired Adv. KE Penetrator 20146 | -3/Testing | Entered Research 20146 | -2/Research | Warlord forces began assault on 0b10 20146 | -2/Research | Evolved 2 slots: Utility x1, Weapon x1 20240 | -2/Research | Spotted B-90 Cyclops 20256 | -2/Research | Research machine network offline 20330 | -2/Research | P-80 Master assimilated allied ZS-3MC(g) 20369 | -2/Research | Met up with Warlord 20469 | -2/Research | Discovered new exit (range 21) 20469 | -2/Research | Spotted B-90 Cyclops 20572 | -2/Research | Discovered new exit (range 13) 20576 | -2/Research | Identified exit to Access 20621 | -2/Research | Borebot progress halted 20646 | -2/Research | Borebot progress halted 20658 | -2/Research | Spotted Striker 20699 | -2/Research | Spotted Striker 20718 | -2/Research | Spotted Y2-YEP(L) 20757 | -2/Research | Found Exp. Targeting Computer 20849 | -2/Research | Found Prototype Device 20849 | -2/Research | Identified Femtoactuators 20856 | -2/Research | Borebot progress halted 20917 | -2/Research | Discovered new exit (range 16) 20929 | -2/Research | Identified exit to Quarantine 21012 | -2/Research | Found Prototype Device 21012 | -2/Research | Identified Exp. Transmission Jammer 21038 | -2/Research | Spotted B-90 Cyclops 21090 | -2/Research | Spotted Executioner 21094 | -2/Research | Spotted Executioner 21119 | -2/Research | Destroyed Executioner 21159 | -2/Research | Spotted Executioner 21161 | -2/Research | Build established: Scavenger-Sprinter 21175 | -2/Research | Spotted Executioner 21192 | -2/Research | Lost 13 allies 21202 | -2/Research | Found Prototype Processor 21202 | -2/Research | Identified Exp. Core Analyzer 21204 | -2/Research | Found Exp. Core Analyzer 21229 | -2/Research | Spotted Executioner 21239 | -2/Research | Destroyed Executioner 21244 | -2/Research | Spotted Executioner 21247 | -2/Research | Spotted Striker 21249 | -2/Research | Spotted Striker 21250 | -2/Research | Spotted Executioner 21252 | -2/Research | Entered Quarantine 21358 | -2/Quarantine | Found Prototype Device 21358 | -2/Quarantine | Identified Exp. EM Shield 21364 | -2/Quarantine | Found Exp. EM Shield 21419 | -2/Quarantine | Central database locked down 21684 | -2/Quarantine | Discovered exit to Access (range 22) 21723 | -2/Quarantine | Found Alien Artifact 21723 | -2/Quarantine | Identified Phase Redirector 21765 | -2/Quarantine | Spotted Fortress 21790 | -2/Quarantine | Discovered new exit (range 6) 21790 | -2/Quarantine | Discovered new exit (range 6) 21791 | -2/Quarantine | Identified exit to Protoforge 21792 | -2/Quarantine | Entered Protoforge 21837 | -2/Protoforge | Build established: Scavenger-Gunner 21854 | -2/Protoforge | Superfortress began startup sequence 21902 | -2/Protoforge | Repaired Helical Railgun? 22096 | -2/Protoforge | Spotted B-90 Cyclops 22122 | -2/Protoforge | Spotted Hotshot 22122 | -2/Protoforge | Spotted Hotshot 22122 | -2/Protoforge | Spotted Hotshot 22122 | -2/Protoforge | Spotted Hotshot 22122 | -2/Protoforge | Spotted Hotshot 22122 | -2/Protoforge | Spotted Hotshot 22122 | -2/Protoforge | Spotted Hotshot 22122 | -2/Protoforge | Spotted Hotshot 22122 | -2/Protoforge | Spotted Hotshot 22122 | -2/Protoforge | Spotted Hotshot 22122 | -2/Protoforge | Spotted Hotshot 22124 | -2/Protoforge | Spotted Hotshot 22124 | -2/Protoforge | Spotted Hotshot 22124 | -2/Protoforge | Spotted Hotshot 22124 | -2/Protoforge | Spotted Hotshot 22128 | -2/Protoforge | Entered Access 22128 | -1/Access | Evolved 2 slots: Propulsion x1, Weapon x1 22384 | -1/Access | Lost 11 parts (1p3n5u2w) 22387 | -1/Access | Build established: Scavenger-Sprinter 22398 | -1/Access | Found Exp. Core Analyzer 22408 | -1/Access | Found Prototype Device 22408 | -1/Access | Identified Exp. Focal Shield 22547 | -1/Access | Incoming investigation squad redirected 22567 | -1/Access | Identified exit to Garrison 22567 | -1/Access | Entered Garrison 22592 | -1/Garrison | Lost 7 parts (7n) 22625 | -1/Garrison | Triggered checkpoint 22626 | -1/Garrison | Core integrity fell below 50% 22655 | -1/Garrison | Core integrity fell below 20% 22716 | -1/Garrison | Lost 3 parts (1n1u1w) 22770 | -1/Garrison | Destroyed by G-73 Enforcer with Heavy Laser Last Messages --------------- 22678_ Acquired Xenon Bombardment Thruster+. 22682_ Acquired Hvy. Machine Gun. 22685_ Xenon Bombardment Thruster+ destroyed. 22685_ Destroyed Xenon Bombardment Thruster. 22691_ S-43 Plague suffers critical hit (Destroy). 22691_ Destroyed Lgt. Antimatter Reactor. 22694_ S-43 Plague destroyed. 22703_ |JJZ4WFZV&JQZWVLFYR9 3LP&WVLHM 22706_ G-73 Enforcer suffers critical hit (Destroy). 22706_ G-73 Enforcer destroyed. 22710_ Acquired 105 matter. 22712_ Acquired Hvy. Machine Gun. 22715_ Acquired Lgt. Antimatter Reactor. 22722_ Acquired 24 matter. 22728_ Acquired 16 matter. 22731_ Acquired 4 matter. 22757_ Hvy. Machine Gun destroyed. 22770_ Xenon Bombardment Thruster+ destroyed. Map ----- +----------------------------------------------------+ | ?????????????????????????????????????????????????? | | ?????????????????????????????????????????????????? | | ?????????????????????????????????????????????????? | | ?????????????????????????????????????????????????? | | ?????????????????????????????????????????????????? | | ???????????????????????????????????????????"#????? | | ?????????????????????????????########### ##????? | | ?????????????????????????????# #????? | | ?????????????????????????????# ^ #????? | | ?????????????????????????????# ### #######????? | | ?????????????????????????????# #?# #??????????? | | ?????????????????????????????# #?#####??????????? | | ?????????????????????????????# #????????????????? | | ?????????????????????????????# #????????????????? | | ?????????????????????????????# #????????????????? | | ?????????????????????????????#" #????????????????? | | ???????????????????????????### "#????????????????? | | ????????????????????????#### " #????????????????? | | ????????????????????????#![+ #????????????????? | | ????????????????????????# #" #????????????????? | | ????????????????????????#%#### #????????????????? | | ????????????????????????# #??# #????????????????? | | ????????????????????????# #??# #????????????????? | | ????????????????????????# #??# #????????????????? | | ????????????????????????# #??# #????????????????? | | ????????????????????????#@#??# #????????????????? | | ????????????????????????# #??# #????????????????? | | ????????????????????????# #??# #????????????????? | | ????????????#############g#### #????????????????? | | ????????# gg gg #????????????????? | | ????????# #????????????????? | | ????????# ######################????????????????? | | ?????????????????????????????????????????????????? | | ?????????????????????????????????????????????????? | | ?????????????????????????????????????????????????? | | ?????????????????????????????????????????????????? | | ?????????????????????????????????????????????????? | | ?????????????????????????????????????????????????? | | ?????????????????????????????????????????????????? | | ?????????????????????????????????????????????????? | | ?????????????????????????????????????????????????? | | ?????????????????????????????????????????????????? | | ?????????????????????????????????????????????????? | | ?????????????????????????????????????????????????? | | ?????????????????????????????????????????????????? | | ?????????????????????????????????????????????????? | | ?????????????????????????????????????????????????? | | ?????????????????????????????????????????????????? | | ?????????????????????????????????????????????????? | | ?????????????????????????????????????????????????? | +----------------------------------------------------+ Best States ------------- Heat Dissipation 80 Coolant Potential 120 Energy Generation 53 Energy Capacity 290 Matter Stores 444 Matter Capacity 500 Sight Range 24 Robot Scan Range 18 Terrain Scan Density 10 ECM Strength 1 Jamming Range 16 Power Amplification 40 Additional Mass Support 12 Armor Coverage 400 Resistance: KI 30 Resistance: EM 75 Propulsion Shielding 66 Utility Shielding 66 Weapon Cycling 20 Melee Speed Boost 50 Evasion (%) 79 Targeting Accuracy 12 Melee Accuracy 16 Core Analysis 12 Recoil Reduction 6 Salvage Targeting 4 Offensive Hacking 20 Defensive Hacking 14 Authchip Count 1 Item Schematics ----------------- Combat Drone Bay | -6/Data Miner | Free Lgt. Regenerative Plating | -6/Data Miner | Free Enh. Flexi-carbon Leg | -6/Data Miner | Free Exp. Heat Sink | -6/Data Miner | Free Mni. Smartbomb Launcher | -6/Data Miner | Free Imp. Gyrokinetic Inverter | -6/Data Miner | Free Adv. Power Amplifier | -6/Data Miner | Free Dispersion Rifle | -6/Data Miner | Free Hyp. Gauss Cannon | -6/Data Miner | Free Imp. Force Field | -6/Data Miner | Free Quantum Rifle | -6/Data Miner | Free Helical Railgun | -3/Testing | Hacked Robot Schematics ------------------ G-50 Soldier | -6/Data Miner | Free Y-64 Sentinel | -6/Data Miner | Free B-48 Gladiator | -6/Data Miner | Free Fabricated ------------ Nothing Repaired ---------- Enh. Coil Gun | 5% | -4/Factory Adv. KE Penetrator | 32% | -3/Research Railgun | 18% | -3/Research Adv. KE Penetrator | 49% | -3/Research | Broken Adv. KE Penetrator | 58% | -3/Testing | Broken Adv. KE Penetrator | 26% | -3/Testing Helical Railgun | 33% | -2/Protoforge Studied --------- Xenon Bombardment Thruster | -6/Factory | Hacked Railgun | -4/Factory | Hacked Fusion Compressor | -4/Factory | Hacked Mic. Fission Core | -4/Factory | Hacked Hyp. Mass Driver | -4/Factory | Hacked Impulse Thruster Array | -4/Factory | Hacked Q-thruster | -3/Testing | Hacked Mic. Antimatter Reactor | -2/Research | Hacked Imp. Fusion Compressor | -2/Quarantine | Hacked Alien Tech Used ----------------- Phase Redirector Achievements -------------- Deadly Precision Insider Info Like A Rock Super-what Now? Challenges ------------ None Game ------ Seed StasisSigixCorpse Manual? 0 Play Time 08:18:31 Cumulative 306.4 hours Start 2026.08.25 @ 18:45:23 End 2026.08.27 @ 18:46:28 Sessions 4 Manual Loads 0 Difficulty Rogue Special Mode None Game No. 77 Rogue 77 Adventurer 0 Explorer 0 Win Type - Total 11 Types 5/1/2/0/1/1/0/1/0/0 Lore% 66 Gallery% 72 Achievement% 59 Wizard Run 0 Options --------- Layout 2 ASCII 0 Keyboard 1 Movement Vi Keybinds 0 Fullscreen 1 Font 24/Smallcaps Map View 50x44 Zoom Use 0% Tactical HUD 1 Map Filters NONE Filters NONE Steam 1 RUN: b45820e9-cac5-4e30-9139-41df8c08fe36